Workbook

Sheet Warning
H12: Life Cycle Cost Calculator
D17: You must enable Macros to use this worksheet
F20: Please click on the 'Options…' button above and select 'Enable this content'
G33: The contents of this spreadsheet are the sole responsibility of the Clean Fleets project and can in no way be taken to reflect the views of the European Union

Sheet LCC (hidden)
D2: VEHICLES - LIFE CYCLE COST (LCC) CALCULATOR
D3: Please fill in the white cells only - use European number formats (commas for decimals, dots for thousands)
B5: GENERAL CONDITIONS
C6: Contract length/period of vehicle ownership | D6: Year | E6: 10 | G6: =E6 -> 10 | I6: =E6 -> 10 | K6: =E6 -> 10 | M6: =E6 -> 10
C7: Discount rate | D7: % | E7: 2 | G7: =E7 -> 2 | I7: =E7 -> 2 | K7: =E7 -> 2 | M7: =E7 -> 2
C8: Number of bids/offers | E8: 3
B10: ACQUISITION COSTS
C11: Name of bidder | E11: Product A | G11: Product B | I11: Product C | K11: Product 4 | M11: Product 5
C13: Number of vehicles | E13: 10 | G13: 10 | I13: 10 | K13: 50 | M13: 50
C14: Purchase price | D14: €/unit | E14: 10000 | F14: €/unit | G14: 10000 | H14: €/unit | J14: €/unit | L14: €/unit | M14: 30000
C15: (or) Lease price | D15: €/unit/year | F15: €/unit/year | H15: €/unit/year | I15: 1000 | J15: €/unit/year | K15: 6800 | L15: €/unit/year
C16: COSTS OF ACQUISITION / UNIT | E16: =-PV(E7*0.01,E6,E15)+E14 -> 10000 | G16: =-PV(G7*0.01,G6,G15)+G14 -> 10000 | I16: =-PV(I7*0.01,I6,I15)+I14 -> 8982.585006 | K16: =-PV(K7*0.01,K6,K15)+K14 -> 61081.57804 | M16: =-PV(M7*0.01,M6,M15)+M14 -> 30000
B18: OPERATING COSTS
C19: Type of Fuel | E19: Diesel | G19: Electricity | I19: LPG
C20: Fuel consumption per vehicle | D20: =INDEX(Calculations!$E$20:$E$30,Calculations!D$4) -> l/100km | E20: 7.5 | F20: =INDEX(Calculations!$E$20:$E$30,Calculations!E$4) -> kWh/100km | G20: 2.5 | H20: =INDEX(Calculations!$E$20:$E$30,Calculations!F$4) -> l/100km | I20: 8.7 | J20: =INDEX(Calculations!$E$20:$E$30,Calculations!G$4) ->  | K20: 10 | L20: =INDEX(Calculations!$E$20:$E$30,Calculations!H$4) ->  | M20: 11
C21: Annual use of vehicle | D21: km | E21: 15000 | F21: km | G21: 15000 | H21: km | I21: 15000 | J21: km | K21: 20000 | L21: km | M21: 20000
C22: Fuel price | D22: =INDEX(Calculations!$F$20:$F$30,Calculations!D4) -> €/l | E22: 1.4 | F22: =INDEX(Calculations!$F$20:$F$30,Calculations!E4) -> €/kWh | G22: 0.13 | H22: =INDEX(Calculations!$F$20:$F$30,Calculations!F4) -> €/l | I22: 1.1 | J22: =INDEX(Calculations!$F$20:$F$30,Calculations!G4) ->  | K22: 0.85 | L22: =INDEX(Calculations!$F$20:$F$30,Calculations!H4) ->  | M22: 0.15
C23: Replacement battery price | D23: €/unit | F23: €/unit | G23: 3000 | H23: €/unit | J23: €/unit | L23: €/unit
C24: Lifetime of battery | D24: Years | F24: Years | G24: 5 | H24: Years | J24: Years | L24: Years
C25: (or) Battery lease price | D25: €/unit/year | F25: €/unit/year | H25: €/unit/year | J25: €/unit/year | K25: 222 | L25: €/unit/year | M25: 250
C26: OPERATING COSTS / UNIT | E26: =IF(C74="Use default OECD-FAO values",-PV(E7*0.01,E6,Calculations!D6+Calculations!D7+LCC!E25),-PV(E7*0.01,E6,E20*(E21/100)*Calculations!D8+Calculations!D7+LCC!E25)) -> 14010.117 | G26: =IF(C74="Use default OECD-FAO values",-PV(E7*0.01,E6,Calculations!E6+Calculations!E7+LCC!G25),-PV(E7*0.01,E6,G20*(G21/100)*Calculations!E8+Calculations!E7+LCC!G25)) -> 3129.503944 | I26: =IF(C74="Use default OECD-FAO values",-PV(E7*0.01,E6,Calculations!F6+Calculations!F7+I25),-PV(E7*0.01,E6,I20*(I21/100)*Calculations!F8+Calculations!F7+I25)) -> 13170.53174 | K26: =IF(C74="Use default OECD-FAO values",-PV(E7*0.01,E6,Calculations!G6+Calculations!G7+K25),-PV(E7*0.01,E6,K20*(K21/100)*Calculations!G8++Calculations!G7+K25)) ->  | M26: =IF(C74="Use default OECD-FAO values",-PV(E7*0.01,E6,Calculations!H6+Calculations!H7+M25),-PV(E7*0.01,E6,M20*(M21/100)*Calculations!H8++Calculations!H7+M25)) -> 
B28: MAINTENANCE COSTS
C29: Estimated annual service costs (incl. spare parts) | D29: €/unit/year | F29: €/unit/year | G29: 200 | H29: €/unit/year | I29: 250 | J29: €/unit/year | K29: 400 | L29: €/unit/year
C30: (or) Annual service agreement | D30: €/unit/year | E30: 300 | F30: €/unit/year | H30: €/unit/year | J30: €/unit/year | L30: €/unit/year | M30: 50
C31: MAINTENANCE COSTS / UNIT | E31: =-PV(E7*0.01,E6,(E30+E29)) -> 2694.775502 | G31: =-PV(G7*0.01,G6,(G30+G29)) -> 1796.517001 | I31: =-PV(I7*0.01,I6,(I30+I29)) -> 2245.646252 | K31: =-PV(K7*0.01,K6,(K30+K29)) -> 3593.034002 | M31: =-PV(M7*0.01,M6,(M30+M29)) -> 449.1292503
B33: TAXES AND OTHER COSTS
C34: Vehicle tax | D34: €/unit/year | E34: 150 | F34: €/unit/year | G34: 0 | H34: €/unit/year | I34: 150 | J34: €/unit/year | K34: 100 | L34: €/unit/year | M34: 0
C35: Insurance costs | D35: €/unit/year | E35: 350 | F35: €/unit/year | G35: 350 | H35: €/unit/year | I35: 350 | J35: €/unit/year | K35: 1000 | L35: €/unit/year | M35: 1100
C36: Infrastructure - one off investment costs | D36: € | F36: € | G36: 1000 | H36: € | I36: 1500 | J36: € | L36: €
C37: (or) Infrastructure - annual costs | D37: €/year | F37: €/year | H37: €/year | J37: €/year | L37: €/year
C38: Other costs (click on expand button on the left)
C39: (Annual cost 1) | D39: €/year | F39: €/year | H39: €/year | J39: €/year | L39: €/year
C40: (Annual cost 2) | D40: €/year | F40: €/year | H40: €/year | J40: €/year | L40: €/year
C41: (One off initial cost 1) | D41: € | F41: € | H41: € | J41: € | L41: €
C42: (One off initial cost 2) | D42: € | F42: € | H42: € | J42: € | L42: €
C43: TOTAL OTHER COSTS / UNIT | E43: =(-PV(E7*0.01,E6,(E34+E35+E37+E39+E40)))+E36+E41+E42 -> 4491.292503 | G43: =(-PV($E$7*0.01,$E$6,(G34+G35+G37+G39+G40)))+G36+G41+G42 -> 4143.904752 | I43: =(-PV($E$7*0.01,$E$6,(I34+I35+I37+I39+I40)))+I36+I41+I42 -> 5991.292503 | K43: =(-PV($E$7*0.01,$E$6,(K34+K35+K37+K39+K40)))+K36+K41+K42 -> 9880.843507 | M43: =(-PV($E$7*0.01,$E$6,(M34+M35+M37+M39+M40)))+M36+M41+M42 -> 9880.843507
B45: EMISSIONS (OPERATIONAL LIFETIME COST- OLC)
C46: CO2 Emissions | D46: g/km | E46: 972.08 | F46: g/km | G46: 0 | H46: g/km | I46: 763.28 | J46: g/km | K46: 113 | L46: g/km | M46: 114
C47: Lifetime cost of CO2 emissions / unit | E47: =$D$70*E46*E21*$E$6 -> 4374.36 | G47: =$D$70*G46*G21*$E$6 -> 0 | I47: =$D$70*I46*I21*$E$6 -> 3434.76 | K47: =$D$70*K46*K21*$E$6 -> 678 | M47: =$D$70*M46*M21*$E$6 -> 684
C48: NOx (Nitrous oxides) | D48: g/km | E48: 0.241 | F48: g/km | H48: g/km | I48: 0.241 | J48: g/km | K48: 9 | L48: g/km | M48: 9
C49: PM (Particular Matter) | D49: g/km | E49: 0.0029 | F49: g/km | G49: 0 | H49: g/km | I49: 0.0029 | J49: g/km | K49: 1 | L49: g/km | M49: 1
C50: NMHC (Non-methane hydrocarbons) | D50: g/km | E50: 0.007 | F50: g/km | G50: 0 | H50: g/km | I50: 0.007 | J50: g/km | K50: 11 | L50: g/km | M50: 11
C51: Lifetime cost of pollutant emissions / unit | E51: =((E48*$D$67)+(E49*$D$68)+(E50*$D$69))*E21*E6 -> 197.955 | G51: =((G48*$D$67)+(G49*$D$68)+(G50*$D$69))*G21*G6 -> 0 | I51: =((I48*$D$67)+(I49*$D$68)+(I50*$D$69))*I21*I6 -> 197.955 | K51: =((K48*$D$67)+(K49*$D$68)+(K50*$D$69))*K21*K6 -> 27520 | M51: =((M48*$D$67)+(M49*$D$68)+(M50*$D$69))*M21*M6 -> 27520
C52: Reference Fuel (Cheapest of petrol or diesel before tax) | E52: Diesel | G52: Diesel | I52: Diesel | K52: Diesel | M52: Diesel
C53: Cost of Reference Fuel (before tax) | D53: €/l | E53: 0.8 | F53: €/l | G53: 0.8 | H53: €/l | I53: 0.8 | J53: €/l | K53: 1.2 | L53: €/l | M53: 1.2
C54: Lifetime cost of energy consumption / unit | E54: =Calculations!D16 -> 9000 | G54: =Calculations!E16 -> 300 | I54: =Calculations!F16 -> 6960 | K54: =Calculations!G16 ->  | M54: =Calculations!H16 -> 
C55: OPERATION LIFETIME COST (OLC) / UNIT | E55: =SUM(E47,E51,E54) -> 13572.315 | G55: =SUM(G47,G51,G54) -> 300 | I55: =SUM(I47,I51,I54) -> 10592.715 | K55: =SUM(K47,K51,K54) ->  | M55: =SUM(M47,M51,M54) -> 
B57: END OF LIFE
C58: Remnant value (at end of contract period) | D58: €/unit | G58: 1000 | K58: 100 | M58: 100
E59: =SUM(E58) -> 0 | G59: =SUM(G58) -> 1000 | I59: =SUM(I58) -> 0 | K59: =SUM(K58) -> 100 | M59: =SUM(M58) -> 100
C61: TOTAL LCC PER UNIT | E61: =E16+E26+E31+E43+E55+E59 -> 44768.5 | G61: =G16+G26+G31+G43+G55+G59 -> 20369.9257 | I61: =I16+I26+I31+I43+I55+I59 -> 40982.77051 | K61: =K16+K26+K31+K43+K55+K59 ->  | M61: =M16+M26+M31+M43+M55+M59 -> 
C62: TOTAL LCC | E62: =E61*E13 -> 447685 | G62: =G61*G13 -> 203699.257 | I62: =I61*I13 -> 409827.7051 | K62: =K61*K13 ->  | M62: =M61*M13 -> 
B65: COST OF EMISSIONS | F65: > | G65: CLICK HERE FOR DIAGRAMS
C66: Emission | D66: Cost per unit €/g
C67: NOx (Range 0,0044-0,0088) | D67: 0.0044
C68: PM (Range 0,087-0,174) | D68: 0.087
C69: NMHC (Range 0,001-0,002) | D69: 0.001
C70: CO2 (Range 0.00003 - 0.00008) | D70: 3e-05
B72: FUEL PRICE INCREASES
C73: Select option in box below
C74: Use default OECD-FAO values
C76: Annual fuel price increase %
C77: Diesel | D77: 0.02
C78: Petrol | D78: 0.02
C79: Natural Gas/Biogas | D79: 0
C80: Electricity | D80: 0.01
C81: Biodiesel | D81: 0.02
C82: LPG | D82: 0.05
C83: Ethanol | D83: 0.02
C84: Hydrogen (gas) | D84: 0.01
C85: Hydrogen (liquid - l/100km) | D85: 0.02
C86: Hydrogen (liquid - kg/100km) | D86: 0.02
C87: Emulsion Fuel | D87: 0.03
C88: Average fuel price per litre for:
C89: Diesel | D89: ='Fuel Prices'!AB4/LCC!E6/(LCC!$E$21*(LCC!$E$20/100)) -> 1.386397938
C90: Petrol | D90: ='Fuel Prices'!AB11/LCC!E6/(LCC!$E$21*(LCC!$E$20/100)) -> 1.294616822
C91: Natural Gas/Biogas | D91: ='Fuel Prices'!AB46/LCC!E7/(LCC!$E$21*(LCC!$E$20/100)) -> 7.382469447
C92: Electricity | D92: ='Fuel Prices'!AB32/LCC!E6/(LCC!$E$21*(LCC!$E$20/100)) -> 1.389857049
C93: Biodiesel | D93: ='Fuel Prices'!AB39/LCC!E7/(LCC!$E$21*(LCC!$E$20/100)) -> 7.224135017
C94: LPG | D94: ='Fuel Prices'!AB18/LCC!E6/(LCC!$E$21*(LCC!$E$20/100)) -> 1.429969625
C95: Ethanol | D95: ='Fuel Prices'!AB25/LCC!E6/(LCC!$E$21*(LCC!$E$20/100)) -> 1.428831739
C96: Hydrogen (gas) | D96: No figures available
C97: Hydrogen (liquid - l/100km) | D97: No figures available
C98: Hydrogen (liquid - kg/100km) | D98: No figures available
C99: Emulsion Fuel | D99: No figures available

Sheet Diagram (hidden)
B3: LCC RESULTS DIAGRAM
W10: Operational lifetime costs
W12: Fuel costs
W14: Total other costs
W16: Maintainance costs
W18: Acquisition costs*
W23: *If remnant value exists it will be subtracted from the acquisition cost in the diagram
C27: > | D27: BACK TO LCC-CALCULATION

Sheet Fuel Prices (hidden)
I2: 5 YEARS | N2: 10 YEARS
D3: 2014 | E3: 2015 | F3: 2016 | G3: 2017 | H3: 2018 | I3: 2019 | J3: 2020 | K3: 2021 | L3: 2022 | M3: 2023 | N3: 2024 | P3: DIESEL | Q3: 2014 | R3: 2015 | S3: 2016 | T3: 2017 | U3: 2018 | V3: 2019 | W3: 2020 | X3: 2021 | Y3: 2022 | Z3: 2023 | AA3: 2024 | AB3: Total fuel price for period
A4: Diesel | B4: $/gallon | C4: Forecasted price | D4: 3.68333 | E4: 3.544132 | F4: 3.495223 | G4: 3.49714 | H4: 3.533868 | I4: 3.610616 | J4: 3.671875 | K4: 3.740702 | L4: 3.815766 | M4: 3.868004 | N4: 3.918083 | P4: Product 1 | Q4: =((LCC!$E$21*(LCC!$E$20/100))*LCC!$E$22) -> 1575 | R4: =((LCC!$E$21*(LCC!$E$20/100))*(LCC!$E$22*(1+$E$6))) -> 1515.478629 | S4: =((LCC!$E$21*(LCC!$E$20/100))*(LCC!$E$22*(1+$F$6))) -> 1493.743639 | T4: =((LCC!$E$21*(LCC!$E$20/100))*(LCC!$E$22*(1+$G$6))) -> 1494.607468 | U4: =((LCC!$E$21*(LCC!$E$20/100))*(LCC!$E$22*(1+$H$6))) -> 1511.148584 | V4: =((LCC!$E$21*(LCC!$E$20/100))*(LCC!$E$22*(1+$I$6))) -> 1545.354191 | W4: =((LCC!$E$21*(LCC!$E$20/100))*(LCC!$E$22*(1+$J$6))) -> 1572.076204 | X4: =((LCC!$E$21*(LCC!$E$20/100))*(LCC!$E$22*(1+$K$6))) -> 1601.598593 | Y4: =((LCC!$E$21*(LCC!$E$20/100))*(LCC!$E$22*(1+$L$6))) -> 1633.203838 | Z4: =((LCC!$E$21*(LCC!$E$20/100))*(LCC!$E$22*(1+$M$6))) -> 1654.765655 | AA4: =((LCC!$E$21*(LCC!$E$20/100))*(LCC!$E$22*(1+$N$6))) -> 1675.157161 | AB4: =SUM(Q4:INDEX(Q4:AA4,LCC!$E$6)) -> 15596.9768
C5: % against previous yr | E5: =(E4-D4)/D4 -> -0.03779134642 | F5: =(F4-E4)/E4 -> -0.01379999391 | G5: 0.0005484628592 | H5: 0.01050229616 | I5: 0.02171784571 | J5: 0.01696635699 | K5: 0.01874437447 | L5: 0.02006682168 | M5: 0.01369004284 | N5: 0.01294698765 | P5: Product 2 | Q5: =((LCC!$G$21*(LCC!$G$20/100))*LCC!$G$22) -> 48.75 | R5: =((LCC!$G$21*(LCC!$G$20/100))*(LCC!$G$22*(1+$E$6))) -> 46.90767186 | S5: =((LCC!$G$21*(LCC!$G$20/100))*(LCC!$G$22*(1+$F$6))) -> 46.23492216 | T5: =((LCC!$G$21*(LCC!$G$20/100))*(LCC!$G$22*(1+$G$6))) -> 46.26165972 | U5: =((LCC!$G$21*(LCC!$G$20/100))*(LCC!$G$22*(1+$H$6))) -> 46.77364666 | V5: =((LCC!$G$21*(LCC!$G$20/100))*(LCC!$G$22*(1+$I$6))) -> 47.83239164 | W5: =((LCC!$G$21*(LCC!$G$20/100))*(LCC!$G$22*(1+$J$6))) -> 48.65950154 | X5: =((LCC!$G$21*(LCC!$G$20/100))*(LCC!$G$22*(1+$K$6))) -> 49.5732898 | Y5: =((LCC!$G$21*(LCC!$G$20/100))*(LCC!$G$22*(1+$L$6))) -> 50.55154736 | Z5: =((LCC!$G$21*(LCC!$G$20/100))*(LCC!$G$22*(1+$M$6))) -> 51.21893694 | AA5: =((LCC!$G$21*(LCC!$G$20/100))*(LCC!$G$22*(1+$N$6))) -> 51.85010259 | AB5: =SUM(Q5:INDEX(Q5:AA5,LCC!$G$6)) -> 482.7635677
C6: % cumulative | E6: =E5 -> -0.03779134642 | F6: =F5+E6 -> -0.05159134032 | G6: =G5+F6 -> -0.05104287746 | H6: -0.0405405813 | I6: -0.01882273559 | J6: -0.0018563786 | K6: 0.01688799587 | L6: 0.03695481755 | M6: 0.05064486039 | N6: 0.06359184803 | P6: Product 3 | Q6: =((LCC!$I$21*(LCC!$I$20/100))*LCC!$I$22) -> 1435.5 | R6: =((LCC!$I$21*(LCC!$I$20/100))*(LCC!$I$22*(1+$E$6))) -> 1381.250522 | S6: =((LCC!$I$21*(LCC!$I$20/100))*(LCC!$I$22*(1+$F$6))) -> 1361.440631 | T6: =((LCC!$I$21*(LCC!$I$20/100))*(LCC!$I$22*(1+$G$6))) -> 1362.227949 | U6: =((LCC!$I$21*(LCC!$I$20/100))*(LCC!$I$22*(1+$H$6))) -> 1377.303996 | V6: =((LCC!$I$21*(LCC!$I$20/100))*(LCC!$I$22*(1+$I$6))) -> 1408.479963 | W6: =((LCC!$I$21*(LCC!$I$20/100))*(LCC!$I$22*(1+$J$6))) -> 1432.835169 | X6: =((LCC!$I$21*(LCC!$I$20/100))*(LCC!$I$22*(1+$K$6))) -> 1459.742718 | Y6: =((LCC!$I$21*(LCC!$I$20/100))*(LCC!$I$22*(1+$L$6))) -> 1488.548641 | Z6: =((LCC!$I$21*(LCC!$I$20/100))*(LCC!$I$22*(1+$M$6))) -> 1508.200697 | AA6: =((LCC!$I$21*(LCC!$I$20/100))*(LCC!$I$22*(1+$N$6))) -> 1526.786098 | AB6: =SUM(Q6:INDEX(Q6:AA6,LCC!$I$6)) -> 14215.53029
A7: Petrol | B7: $/gallon | C7: Forecasted price | D7: 3.380838 | E7: 3.1774 | F7: 3.071946 | G7: 3.027397 | H7: 3.020742 | I7: 3.034724 | J7: 3.077188 | K7: 3.120887 | L7: 3.169647 | M7: 3.220602 | N7: 3.261647 | P7: Product 4 | Q7: =((LCC!$K$21*(LCC!$K$20/100))*LCC!$K$22) -> 1700 | R7: =((LCC!$K$21*(LCC!$K$20/100))*(LCC!$K$22*(1+$E$6))) -> 1635.754711 | S7: =((LCC!$K$21*(LCC!$K$20/100))*(LCC!$K$22*(1+$F$6))) -> 1612.294721 | T7: =((LCC!$K$21*(LCC!$K$20/100))*(LCC!$K$22*(1+$G$6))) -> 1613.227108 | U7: =((LCC!$K$21*(LCC!$K$20/100))*(LCC!$K$22*(1+$H$6))) -> 1631.081012 | V7: =((LCC!$K$21*(LCC!$K$20/100))*(LCC!$K$22*(1+$I$6))) -> 1668.00135 | W7: =((LCC!$K$21*(LCC!$K$20/100))*(LCC!$K$22*(1+$J$6))) -> 1696.844156 | X7: =((LCC!$K$21*(LCC!$K$20/100))*(LCC!$K$22*(1+$K$6))) -> 1728.709593 | Y7: =((LCC!$K$21*(LCC!$K$20/100))*(LCC!$K$22*(1+$L$6))) -> 1762.82319 | Z7: =((LCC!$K$21*(LCC!$K$20/100))*(LCC!$K$22*(1+$M$6))) -> 1786.096263 | AA7: =((LCC!$K$21*(LCC!$K$20/100))*(LCC!$K$22*(1+$N$6))) -> 1808.106142 | AB7: =SUM(Q7:INDEX(Q7:AA7,LCC!$K$6)) -> 16834.8321
C8: %against previous yr | E8: =(E7-D7)/D7 -> -0.06017383856 | F8: =(F7-E7)/E7 -> -0.03318877069 | G8: -0.01450188252 | H8: -0.002198258108 | I8: 0.004628664083 | J8: 0.01399270576 | K8: 0.0142009523 | L8: 0.01562376337 | M8: 0.01607592265 | N8: 0.01274451174 | P8: Product 5 | Q8: =((LCC!$M$21*(LCC!$M$20/100))*LCC!$M$22) -> 330 | R8: =((LCC!$M$21*(LCC!$M$20/100))*(LCC!$M$22*(1+$E$6))) -> 317.5288557 | S8: =((LCC!$M$21*(LCC!$M$20/100))*(LCC!$M$22*(1+$F$6))) -> 312.9748577 | T8: =((LCC!$M$21*(LCC!$M$20/100))*(LCC!$M$22*(1+$G$6))) -> 313.1558504 | U8: =((LCC!$M$21*(LCC!$M$20/100))*(LCC!$M$22*(1+$H$6))) -> 316.6216082 | V8: =((LCC!$M$21*(LCC!$M$20/100))*(LCC!$M$22*(1+$I$6))) -> 323.7884973 | W8: =((LCC!$M$21*(LCC!$M$20/100))*(LCC!$M$22*(1+$J$6))) -> 329.3873951 | X8: =((LCC!$M$21*(LCC!$M$20/100))*(LCC!$M$22*(1+$K$6))) -> 335.5730386 | Y8: =((LCC!$M$21*(LCC!$M$20/100))*(LCC!$M$22*(1+$L$6))) -> 342.1950898 | Z8: =((LCC!$M$21*(LCC!$M$20/100))*(LCC!$M$22*(1+$M$6))) -> 346.7128039 | AA8: =((LCC!$M$21*(LCC!$M$20/100))*(LCC!$M$22*(1+$N$6))) -> 350.9853099 | AB8: =SUM(Q8:INDEX(Q8:AA8,LCC!$M$6)) -> 3267.937997
C9: %cumulative | E9: =E8 -> -0.06017383856 | F9: =F8+E9 -> -0.09336260925 | G9: =G8+F9 -> -0.1078644918 | H9: -0.1100627499 | I9: -0.1054340858 | J9: -0.09144138003 | K9: -0.07724042773 | L9: -0.06161666436 | M9: -0.04554074171 | N9: -0.03279622997
A10: LPG | B10: $/gallon | C10: Forecasted price | D10: 2.189299 | E10: 2.142774 | F10: 2.145436 | G10: 2.194211 | H10: 2.231533 | I10: 2.254148 | J10: 2.269551 | K10: 2.294362 | L10: 2.313964 | M10: 2.328557 | N10: 2.346319 | P10: PETROL | Q10: 2014 | R10: 2015 | S10: 2016 | T10: 2017 | U10: 2018 | V10: 2019 | W10: 2020 | X10: 2021 | Y10: 2022 | Z10: 2023 | AA10: 2024 | AB10: Total fuel price for period
C11: % against previous yr | E11: =(E10-D10)/D10 -> -0.02125109453 | F11: =(F10-E10)/E10 -> 0.001242314868 | G11: 0.02273430669 | H11: 0.01700930312 | I11: 0.01013428885 | J11: 0.00683318043 | K11: 0.01093211829 | L11: 0.008543551541 | M11: 0.006306493964 | N11: 0.007627900026 | P11: Product 1 | Q11: =((LCC!$E$21*(LCC!$E$20/100))*LCC!$E$22) -> 1575 | R11: =((LCC!$E$21*(LCC!$E$20/100))*(LCC!$E$22*(1+$E$9))) -> 1480.226204 | S11: =((LCC!$E$21*(LCC!$E$20/100))*(LCC!$E$22*(1+$F$9))) -> 1427.95389 | T11: =((LCC!$E$21*(LCC!$E$20/100))*(LCC!$E$22*(1+$G$9))) -> 1405.113425 | U11: =((LCC!$E$21*(LCC!$E$20/100))*(LCC!$E$22*(1+$H$9))) -> 1401.651169 | V11: =((LCC!$E$21*(LCC!$E$20/100))*(LCC!$E$22*(1+$I$9))) -> 1408.941315 | W11: =((LCC!$E$21*(LCC!$E$20/100))*(LCC!$E$22*(1+$J$9))) -> 1430.979826 | X11: =((LCC!$E$21*(LCC!$E$20/100))*(LCC!$E$22*(1+$K$9))) -> 1453.346326 | Y11: =((LCC!$E$21*(LCC!$E$20/100))*(LCC!$E$22*(1+$L$9))) -> 1477.953754 | Z11: =((LCC!$E$21*(LCC!$E$20/100))*(LCC!$E$22*(1+$M$9))) -> 1503.273332 | AA11: =((LCC!$E$21*(LCC!$E$20/100))*(LCC!$E$22*(1+$N$9))) -> 1523.345938 | AB11: =SUM(Q11:INDEX(Q11:AA11,LCC!$E$6)) -> 14564.43924
C12: % cumulative | E12: =E11 -> -0.02125109453 | F12: =F11+E12 -> -0.02000877966 | G12: =G11+F12 -> 0.002725527026 | H12: 0.01973483014 | I12: 0.02986911899 | J12: 0.03670229942 | K12: 0.04763441771 | L12: 0.05617796925 | M12: 0.06248446322 | N12: 0.07011236324 | P12: Product 2 | Q12: =((LCC!$G$21*(LCC!$G$20/100))*LCC!$G$22) -> 48.75 | R12: =((LCC!$G$21*(LCC!$G$20/100))*(LCC!$G$22*(1+$E$9))) -> 45.81652537 | S12: =((LCC!$G$21*(LCC!$G$20/100))*(LCC!$G$22*(1+$F$9))) -> 44.1985728 | T12: =((LCC!$G$21*(LCC!$G$20/100))*(LCC!$G$22*(1+$G$9))) -> 43.49160603 | U12: =((LCC!$G$21*(LCC!$G$20/100))*(LCC!$G$22*(1+$H$9))) -> 43.38444094 | V12: =((LCC!$G$21*(LCC!$G$20/100))*(LCC!$G$22*(1+$I$9))) -> 43.61008832 | W12: =((LCC!$G$21*(LCC!$G$20/100))*(LCC!$G$22*(1+$J$9))) -> 44.29223272 | X12: =((LCC!$G$21*(LCC!$G$20/100))*(LCC!$G$22*(1+$K$9))) -> 44.98452915 | Y12: =((LCC!$G$21*(LCC!$G$20/100))*(LCC!$G$22*(1+$L$9))) -> 45.74618761 | Z12: =((LCC!$G$21*(LCC!$G$20/100))*(LCC!$G$22*(1+$M$9))) -> 46.52988884 | AA12: =((LCC!$G$21*(LCC!$G$20/100))*(LCC!$G$22*(1+$N$9))) -> 47.15118379 | AB12: =SUM(Q12:INDEX(Q12:AA12,LCC!$G$6)) -> 450.8040718
A13: Ethanol | B13: $/gallon | C13: Forecasted price | D13: 2.570742 | E13: 2.574596 | F13: 2.577285 | G13: 2.579537 | H13: 2.581203 | I13: 2.597471 | J13: 2.664484 | K13: 2.691967 | L13: 2.703933 | M13: 2.702737 | N13: 2.602026 | P13: Product 3 | Q13: =((LCC!$I$21*(LCC!$I$20/100))*LCC!$I$22) -> 1435.5 | R13: =((LCC!$I$21*(LCC!$I$20/100))*(LCC!$I$22*(1+$E$9))) -> 1349.120455 | S13: =((LCC!$I$21*(LCC!$I$20/100))*(LCC!$I$22*(1+$F$9))) -> 1301.477974 | T13: =((LCC!$I$21*(LCC!$I$20/100))*(LCC!$I$22*(1+$G$9))) -> 1280.660522 | U13: =((LCC!$I$21*(LCC!$I$20/100))*(LCC!$I$22*(1+$H$9))) -> 1277.504923 | V13: =((LCC!$I$21*(LCC!$I$20/100))*(LCC!$I$22*(1+$I$9))) -> 1284.14937 | W13: =((LCC!$I$21*(LCC!$I$20/100))*(LCC!$I$22*(1+$J$9))) -> 1304.235899 | X13: =((LCC!$I$21*(LCC!$I$20/100))*(LCC!$I$22*(1+$K$9))) -> 1324.621366 | Y13: =((LCC!$I$21*(LCC!$I$20/100))*(LCC!$I$22*(1+$L$9))) -> 1347.049278 | Z13: =((LCC!$I$21*(LCC!$I$20/100))*(LCC!$I$22*(1+$M$9))) -> 1370.126265 | AA13: =((LCC!$I$21*(LCC!$I$20/100))*(LCC!$I$22*(1+$N$9))) -> 1388.421012 | AB13: =SUM(Q13:INDEX(Q13:AA13,LCC!$I$6)) -> 13274.44605
C14: % against previous yr | E14: =(E13-D13)/D13 -> 0.001499178058 | F14: =(F13-E13)/E13 -> 0.00104443571 | G14: 0.0008737877262 | H14: 0.0006458523371 | I14: 0.006302487639 | J14: 0.02579932557 | K14: 0.01031456747 | L14: 0.004445076778 | M14: -0.0004423186521 | N14: -0.03726259714 | P14: Product 4 | Q14: =((LCC!$K$21*(LCC!$K$20/100))*LCC!$K$22) -> 1700 | R14: =((LCC!$K$21*(LCC!$K$20/100))*(LCC!$K$22*(1+$E$9))) -> 1597.704474 | S14: =((LCC!$K$21*(LCC!$K$20/100))*(LCC!$K$22*(1+$F$9))) -> 1541.283564 | T14: =((LCC!$K$21*(LCC!$K$20/100))*(LCC!$K$22*(1+$G$9))) -> 1516.630364 | U14: =((LCC!$K$21*(LCC!$K$20/100))*(LCC!$K$22*(1+$H$9))) -> 1512.893325 | V14: =((LCC!$K$21*(LCC!$K$20/100))*(LCC!$K$22*(1+$I$9))) -> 1520.762054 | W14: =((LCC!$K$21*(LCC!$K$20/100))*(LCC!$K$22*(1+$J$9))) -> 1544.549654 | X14: =((LCC!$K$21*(LCC!$K$20/100))*(LCC!$K$22*(1+$K$9))) -> 1568.691273 | Y14: =((LCC!$K$21*(LCC!$K$20/100))*(LCC!$K$22*(1+$L$9))) -> 1595.251671 | Z14: =((LCC!$K$21*(LCC!$K$20/100))*(LCC!$K$22*(1+$M$9))) -> 1622.580739 | AA14: =((LCC!$K$21*(LCC!$K$20/100))*(LCC!$K$22*(1+$N$9))) -> 1644.246409 | AB14: =SUM(Q14:INDEX(Q14:AA14,LCC!$K$6)) -> 15720.34712
C15: % cumulative | E15: =E14 -> 0.001499178058 | F15: =F14+E15 -> 0.002543613768 | G15: =G14+F15 -> 0.003417401494 | H15: 0.004063253831 | I15: 0.01036574147 | J15: 0.03616506704 | K15: 0.04647963452 | L15: 0.0509247113 | M15: 0.05048239264 | N15: 0.01321979551 | P15: Product 5 | Q15: =((LCC!$M$21*(LCC!$M$20/100))*LCC!$M$22) -> 330 | R15: =((LCC!$M$21*(LCC!$M$20/100))*(LCC!$M$22*(1+$E$9))) -> 310.1426333 | S15: =((LCC!$M$21*(LCC!$M$20/100))*(LCC!$M$22*(1+$F$9))) -> 299.1903389 | T15: =((LCC!$M$21*(LCC!$M$20/100))*(LCC!$M$22*(1+$G$9))) -> 294.4047177 | U15: =((LCC!$M$21*(LCC!$M$20/100))*(LCC!$M$22*(1+$H$9))) -> 293.6792925 | V15: =((LCC!$M$21*(LCC!$M$20/100))*(LCC!$M$22*(1+$I$9))) -> 295.2067517 | W15: =((LCC!$M$21*(LCC!$M$20/100))*(LCC!$M$22*(1+$J$9))) -> 299.8243446 | X15: =((LCC!$M$21*(LCC!$M$20/100))*(LCC!$M$22*(1+$K$9))) -> 304.5106588 | Y15: =((LCC!$M$21*(LCC!$M$20/100))*(LCC!$M$22*(1+$L$9))) -> 309.6665008 | Z15: =((LCC!$M$21*(LCC!$M$20/100))*(LCC!$M$22*(1+$M$9))) -> 314.9715552 | AA15: =((LCC!$M$21*(LCC!$M$20/100))*(LCC!$M$22*(1+$N$9))) -> 319.1772441 | AB15: =SUM(Q15:INDEX(Q15:AA15,LCC!$M$6)) -> 3051.596794
A16: Electricity | B16: $cents/kwathour | C16: Forecasted price | D16: 10.217 | E16: 10.143057 | F16: 10.121602 | G16: 10.095456 | H16: 10.162351 | I16: 10.245553 | J16: 10.188695 | K16: 10.146483 | L16: 10.065858 | M16: 10.040848 | N16: 10.164512
C17: % against previous yr | E17: =(E16-D16)/D16 -> -0.007237251639 | F17: =(F16-E16)/E16 -> -0.002115240011 | G17: -0.002583187918 | H17: 0.006626248482 | I17: 0.008187278711 | J17: -0.005549529635 | K17: -0.004143023223 | L17: -0.007946103098 | M17: -0.00248463668 | N17: 0.01231609123 | P17: LPG | Q17: 2014 | R17: 2015 | S17: 2016 | T17: 2017 | U17: 2018 | V17: 2019 | W17: 2020 | X17: 2021 | Y17: 2022 | Z17: 2023 | AA17: 2024 | AB17: Total fuel price for period
C18: % cumulative | E18: =E17 -> -0.007237251639 | F18: =F17+E18 -> -0.00935249165 | G18: =G17+F18 -> -0.01193567957 | H18: -0.005309431086 | I18: 0.002877847625 | J18: -0.00267168201 | K18: -0.006814705233 | L18: -0.01476080833 | M18: -0.01724544501 | N18: -0.00492935378 | P18: Product 1 | Q18: =((LCC!$E$21*(LCC!$E$20/100))*LCC!$E$22) -> 1575 | R18: =((LCC!$E$21*(LCC!$E$20/100))*(LCC!$E$22*(1+$E$12))) -> 1541.529526 | S18: =((LCC!$E$21*(LCC!$E$20/100))*(LCC!$E$22*(1+$F$12))) -> 1543.486172 | T18: =((LCC!$E$21*(LCC!$E$20/100))*(LCC!$E$22*(1+$G$12))) -> 1579.292705 | U18: =((LCC!$E$21*(LCC!$E$20/100))*(LCC!$E$22*(1+$H$12))) -> 1606.082357 | V18: =((LCC!$E$21*(LCC!$E$20/100))*(LCC!$E$22*(1+$I$12))) -> 1622.043862 | W18: =((LCC!$E$21*(LCC!$E$20/100))*(LCC!$E$22*(1+$J$12))) -> 1632.806122 | X18: =((LCC!$E$21*(LCC!$E$20/100))*(LCC!$E$22*(1+$K$12))) -> 1650.024208 | Y18: =((LCC!$E$21*(LCC!$E$20/100))*(LCC!$E$22*(1+$L$12))) -> 1663.480302 | Z18: =((LCC!$E$21*(LCC!$E$20/100))*(LCC!$E$22*(1+$M$12))) -> 1673.41303 | AA18: =((LCC!$E$21*(LCC!$E$20/100))*(LCC!$E$22*(1+$N$12))) -> 1685.426972 | AB18: =SUM(Q18:INDEX(Q18:AA18,LCC!$E$6)) -> 16087.15828
A19: Biodiesel | B19: $/100 liters | C19: Forecasted price | D19: 156.2 | E19: 153.5 | F19: 148.8 | G19: 154.7 | H19: 159.8 | I19: 159.8 | J19: 164.3 | K19: 167 | L19: 173 | M19: 175 | N19: 177.6 | P19: Product 2 | Q19: =((LCC!$G$21*(LCC!$G$20/100))*LCC!$G$22) -> 48.75 | R19: =((LCC!$G$21*(LCC!$G$20/100))*(LCC!$G$22*(1+$E$12))) -> 47.71400914 | S19: =((LCC!$G$21*(LCC!$G$20/100))*(LCC!$G$22*(1+$F$12))) -> 47.77457199 | T19: =((LCC!$G$21*(LCC!$G$20/100))*(LCC!$G$22*(1+$G$12))) -> 48.88286944 | U19: =((LCC!$G$21*(LCC!$G$20/100))*(LCC!$G$22*(1+$H$12))) -> 49.71207297 | V19: =((LCC!$G$21*(LCC!$G$20/100))*(LCC!$G$22*(1+$I$12))) -> 50.20611955 | W19: =((LCC!$G$21*(LCC!$G$20/100))*(LCC!$G$22*(1+$J$12))) -> 50.5392371 | X19: =((LCC!$G$21*(LCC!$G$20/100))*(LCC!$G$22*(1+$K$12))) -> 51.07217786 | Y19: =((LCC!$G$21*(LCC!$G$20/100))*(LCC!$G$22*(1+$L$12))) -> 51.488676 | Z19: =((LCC!$G$21*(LCC!$G$20/100))*(LCC!$G$22*(1+$M$12))) -> 51.79611758 | AA19: =((LCC!$G$21*(LCC!$G$20/100))*(LCC!$G$22*(1+$N$12))) -> 52.16797771 | AB19: =SUM(Q19:INDEX(Q19:AA19,LCC!$G$6)) -> 497.9358516
C20: % against previous yr | E20: =(E19-D19)/D19 -> -0.01728553137 | F20: =(F19-E19)/E19 -> -0.03061889251 | G20: 0.03965053763 | H20: 0.03296703297 | I20: 0 | J20: 0.02816020025 | K20: 0.01643335362 | L20: 0.03592814371 | M20: 0.01156069364 | N20: 0.01485714286 | P20: Product 3 | Q20: =((LCC!$I$21*(LCC!$I$20/100))*LCC!$I$22) -> 1435.5 | R20: =((LCC!$I$21*(LCC!$I$20/100))*(LCC!$I$22*(1+$E$12))) -> 1404.994054 | S20: =((LCC!$I$21*(LCC!$I$20/100))*(LCC!$I$22*(1+$F$12))) -> 1406.777397 | T20: =((LCC!$I$21*(LCC!$I$20/100))*(LCC!$I$22*(1+$G$12))) -> 1439.412494 | U20: =((LCC!$I$21*(LCC!$I$20/100))*(LCC!$I$22*(1+$H$12))) -> 1463.829349 | V20: =((LCC!$I$21*(LCC!$I$20/100))*(LCC!$I$22*(1+$I$12))) -> 1478.37712 | W20: =((LCC!$I$21*(LCC!$I$20/100))*(LCC!$I$22*(1+$J$12))) -> 1488.186151 | X20: =((LCC!$I$21*(LCC!$I$20/100))*(LCC!$I$22*(1+$K$12))) -> 1503.879207 | Y20: =((LCC!$I$21*(LCC!$I$20/100))*(LCC!$I$22*(1+$L$12))) -> 1516.143475 | Z20: =((LCC!$I$21*(LCC!$I$20/100))*(LCC!$I$22*(1+$M$12))) -> 1525.196447 | AA20: =((LCC!$I$21*(LCC!$I$20/100))*(LCC!$I$22*(1+$N$12))) -> 1536.146297 | AB20: =SUM(Q20:INDEX(Q20:AA20,LCC!$I$6)) -> 14662.29569
C21: % cumulative | E21: =E20 -> -0.01728553137 | F21: =F20+E21 -> -0.04790442388 | G21: =G20+F21 -> -0.008253886244 | H21: 0.02471314672 | I21: 0.02471314672 | J21: 0.05287334697 | K21: 0.06930670059 | L21: 0.1052348443 | M21: 0.1167955379 | N21: 0.1316526808 | P21: Product 4 | Q21: =((LCC!$K$21*(LCC!$K$20/100))*LCC!$K$22) -> 1700 | R21: =((LCC!$K$21*(LCC!$K$20/100))*(LCC!$K$22*(1+$E$12))) -> 1663.873139 | S21: =((LCC!$K$21*(LCC!$K$20/100))*(LCC!$K$22*(1+$F$12))) -> 1665.985075 | T21: =((LCC!$K$21*(LCC!$K$20/100))*(LCC!$K$22*(1+$G$12))) -> 1704.633396 | U21: =((LCC!$K$21*(LCC!$K$20/100))*(LCC!$K$22*(1+$H$12))) -> 1733.549211 | V21: =((LCC!$K$21*(LCC!$K$20/100))*(LCC!$K$22*(1+$I$12))) -> 1750.777502 | W21: =((LCC!$K$21*(LCC!$K$20/100))*(LCC!$K$22*(1+$J$12))) -> 1762.393909 | X21: =((LCC!$K$21*(LCC!$K$20/100))*(LCC!$K$22*(1+$K$12))) -> 1780.97851 | Y21: =((LCC!$K$21*(LCC!$K$20/100))*(LCC!$K$22*(1+$L$9))) -> 1595.251671 | Z21: =((LCC!$K$21*(LCC!$K$20/100))*(LCC!$K$22*(1+$M$9))) -> 1622.580739 | AA21: =((LCC!$K$21*(LCC!$K$20/100))*(LCC!$K$22*(1+$N$12))) -> 1819.191018 | AB21: =SUM(Q21:INDEX(Q21:AA21,LCC!$K$6)) -> 16980.02315
A22: Natural Gas | B22: $/million Btu | C22: Forecasted price | D22: 16.09 | E22: 16.1 | F22: 16.52 | G22: 16.73 | H22: 17.02 | I22: 17.17 | J22: 17.26 | K22: 17.41 | L22: 17.7 | M22: 17.96 | N22: 18.17 | P22: Product 5 | Q22: =((LCC!$M$21*(LCC!$M$20/100))*LCC!$M$22) -> 330 | R22: =((LCC!$M$21*(LCC!$M$20/100))*(LCC!$M$22*(1+$E$12))) -> 322.9871388 | S22: =((LCC!$M$21*(LCC!$M$20/100))*(LCC!$M$22*(1+$F$12))) -> 323.3971027 | T22: =((LCC!$M$21*(LCC!$M$20/100))*(LCC!$M$22*(1+$G$12))) -> 330.8994239 | U22: =((LCC!$M$21*(LCC!$M$20/100))*(LCC!$M$22*(1+$H$12))) -> 336.5124939 | V22: =((LCC!$M$21*(LCC!$M$20/100))*(LCC!$M$22*(1+$I$12))) -> 339.8568093 | W22: =((LCC!$M$21*(LCC!$M$20/100))*(LCC!$M$22*(1+$J$12))) -> 342.1117588 | X22: =((LCC!$M$21*(LCC!$M$20/100))*(LCC!$M$22*(1+$K$12))) -> 345.7193578 | Y22: =((LCC!$M$21*(LCC!$M$20/100))*(LCC!$M$22*(1+$L$12))) -> 348.5387299 | Z22: =((LCC!$M$21*(LCC!$M$20/100))*(LCC!$M$22*(1+$M$12))) -> 350.6198729 | AA22: =((LCC!$M$21*(LCC!$M$20/100))*(LCC!$M$22*(1+$N$12))) -> 353.1370799 | AB22: =SUM(Q22:INDEX(Q22:AA22,LCC!$M$6)) -> 3370.642688
C23: % against previous yr | E23: =(E22-D22)/D22 -> 0.0006215040398 | F23: =(F22-E22)/E22 -> 0.02608695652 | G23: 0.01271186441 | H23: 0.0173341303 | I23: 0.008813160987 | J23: 0.005241700641 | K23: 0.008690614137 | L23: 0.01665709362 | M23: 0.01468926554 | N23: 0.01169265033
C24: % cumulative | E24: =E23 -> 0.0006215040398 | F24: =F23+E24 -> 0.02670846056 | G24: =G23+F24 -> 0.03942032497 | H24: 0.05675445527 | I24: 0.06556761626 | J24: 0.0708093169 | K24: 0.07949993104 | L24: 0.09615702466 | M24: 0.1108462902 | N24: 0.1225389405 | P24: ETHANOL | Q24: 2014 | R24: 2015 | S24: 2016 | T24: 2017 | U24: 2018 | V24: 2019 | W24: 2020 | X24: 2021 | Y24: 2022 | Z24: 2023 | AA24: 2024 | AB24: Total fuel price for period
P25: Product 1 | Q25: =((LCC!$E$21*(LCC!$E$20/100))*LCC!$E$22) -> 1575 | R25: =((LCC!$E$21*(LCC!$E$20/100))*(LCC!$E$22*(1+$E$15))) -> 1577.361205 | S25: =((LCC!$E$21*(LCC!$E$20/100))*(LCC!$E$22*(1+$F$15))) -> 1579.006192 | T25: =((LCC!$E$21*(LCC!$E$20/100))*(LCC!$E$22*(1+$G$15))) -> 1580.382407 | U25: =((LCC!$E$21*(LCC!$E$20/100))*(LCC!$E$22*(1+$H$15))) -> 1581.399625 | V25: =((LCC!$E$21*(LCC!$E$20/100))*(LCC!$E$22*(1+$I$15))) -> 1591.326043 | W25: =((LCC!$E$21*(LCC!$E$20/100))*(LCC!$E$22*(1+$J$15))) -> 1631.959981 | X25: =((LCC!$E$21*(LCC!$E$20/100))*(LCC!$E$22*(1+$K$15))) -> 1648.205424 | Y25: =((LCC!$E$21*(LCC!$E$20/100))*(LCC!$E$22*(1+$L$15))) -> 1655.20642 | Z25: =((LCC!$E$21*(LCC!$E$20/100))*(LCC!$E$22*(1+$M$15))) -> 1654.509768 | AA25: =((LCC!$E$21*(LCC!$E$20/100))*(LCC!$E$22*(1+$N$15))) -> 1595.821178 | AB25: =SUM(Q25:INDEX(Q25:AA25,LCC!$E$6)) -> 16074.35707
P26: Product 2 | Q26: =((LCC!$G$21*(LCC!$G$20/100))*LCC!$G$22) -> 48.75 | R26: =((LCC!$G$21*(LCC!$G$20/100))*(LCC!$G$22*(1+$E$15))) -> 48.82308493 | S26: =((LCC!$G$21*(LCC!$G$20/100))*(LCC!$G$22*(1+$F$15))) -> 48.87400117 | T26: =((LCC!$G$21*(LCC!$G$20/100))*(LCC!$G$22*(1+$G$15))) -> 48.91659832 | U26: =((LCC!$G$21*(LCC!$G$20/100))*(LCC!$G$22*(1+$H$15))) -> 48.94808362 | V26: =((LCC!$G$21*(LCC!$G$20/100))*(LCC!$G$22*(1+$I$15))) -> 49.2553299 | W26: =((LCC!$G$21*(LCC!$G$20/100))*(LCC!$G$22*(1+$J$15))) -> 50.51304702 | X26: =((LCC!$G$21*(LCC!$G$20/100))*(LCC!$G$22*(1+$K$15))) -> 51.01588218 | Y26: =((LCC!$G$21*(LCC!$G$20/100))*(LCC!$G$22*(1+$L$15))) -> 51.23257968 | Z26: =((LCC!$G$21*(LCC!$G$20/100))*(LCC!$G$22*(1+$M$15))) -> 51.21101664 | AA26: =((LCC!$G$21*(LCC!$G$20/100))*(LCC!$G$22*(1+$N$15))) -> 49.39446503 | AB26: =SUM(Q26:INDEX(Q26:AA26,LCC!$G$6)) -> 497.5396235
D27: 2014 | E27: 2017 (3 yrs) | F27: 2019 (5yrs) | G27: 2024 (10yrs) | H27: Product 1 | I27: Product 2 | J27: Product 3 | K27: Product 4 | L27: Product 5 | P27: Product 3 | Q27: =((LCC!$I$21*(LCC!$I$20/100))*LCC!$I$22) -> 1435.5 | R27: =((LCC!$I$21*(LCC!$I$20/100))*(LCC!$I$22*(1+$E$15))) -> 1437.65207 | S27: =((LCC!$I$21*(LCC!$I$20/100))*(LCC!$I$22*(1+$F$15))) -> 1439.151358 | T27: =((LCC!$I$21*(LCC!$I$20/100))*(LCC!$I$22*(1+$G$15))) -> 1440.40568 | U27: =((LCC!$I$21*(LCC!$I$20/100))*(LCC!$I$22*(1+$H$15))) -> 1441.332801 | V27: =((LCC!$I$21*(LCC!$I$20/100))*(LCC!$I$22*(1+$I$15))) -> 1450.380022 | W27: =((LCC!$I$21*(LCC!$I$20/100))*(LCC!$I$22*(1+$J$15))) -> 1487.414954 | X27: =((LCC!$I$21*(LCC!$I$20/100))*(LCC!$I$22*(1+$K$15))) -> 1502.221515 | Y27: =((LCC!$I$21*(LCC!$I$20/100))*(LCC!$I$22*(1+$L$15))) -> 1508.602423 | Z27: =((LCC!$I$21*(LCC!$I$20/100))*(LCC!$I$22*(1+$M$15))) -> 1507.967475 | AA27: =((LCC!$I$21*(LCC!$I$20/100))*(LCC!$I$22*(1+$N$15))) -> 1454.477016 | AB27: =SUM(Q27:INDEX(Q27:AA27,LCC!$I$6)) -> 14650.6283
B28: Diesel | C28: Forecasted price ($/gallon) | D28: 3.68 | E28: 3.5 | F28: 3.61 | G28: 3.92 | H28: =AB4 -> 15596.9768 | I28: =AB5 -> 482.7635677 | J28: =AB6 -> 14215.53029 | K28: =AB7 -> 16834.8321 | L28: =AB8 -> 3267.937997 | P28: Product 4 | Q28: =((LCC!$K$21*(LCC!$K$20/100))*LCC!$K$22) -> 1700 | R28: =((LCC!$K$21*(LCC!$K$20/100))*(LCC!$K$22*(1+$E$15))) -> 1702.548603 | S28: =((LCC!$K$21*(LCC!$K$20/100))*(LCC!$K$22*(1+$F$15))) -> 1704.324143 | T28: =((LCC!$K$21*(LCC!$K$20/100))*(LCC!$K$22*(1+$G$15))) -> 1705.809583 | U28: =((LCC!$K$21*(LCC!$K$20/100))*(LCC!$K$22*(1+$H$15))) -> 1706.907532 | V28: =((LCC!$K$21*(LCC!$K$20/100))*(LCC!$K$22*(1+$I$15))) -> 1717.62176 | W28: =((LCC!$K$21*(LCC!$K$20/100))*(LCC!$K$22*(1+$J$15))) -> 1761.480614 | X28: =((LCC!$K$21*(LCC!$K$20/100))*(LCC!$K$22*(1+$K$15))) -> 1779.015379 | Y28: =((LCC!$K$21*(LCC!$K$20/100))*(LCC!$K$22*(1+$L$9))) -> 1595.251671 | Z28: =((LCC!$K$21*(LCC!$K$20/100))*(LCC!$K$22*(1+$M$9))) -> 1622.580739 | AA28: =((LCC!$K$21*(LCC!$K$20/100))*(LCC!$K$22*(1+$N$15))) -> 1722.473652 | AB28: =SUM(Q28:INDEX(Q28:AA28,LCC!$K$6)) -> 16995.54002
C29: % increase/decrease | E29: -0.051 | F29: -0.0188 | G29: 0.0636 | P29: Product 5 | Q29: =((LCC!$M$21*(LCC!$M$20/100))*LCC!$M$22) -> 330 | R29: =((LCC!$M$21*(LCC!$M$20/100))*(LCC!$M$22*(1+$E$15))) -> 330.4947288 | S29: =((LCC!$M$21*(LCC!$M$20/100))*(LCC!$M$22*(1+$F$15))) -> 330.8393925 | T29: =((LCC!$M$21*(LCC!$M$20/100))*(LCC!$M$22*(1+$G$15))) -> 331.1277425 | U29: =((LCC!$M$21*(LCC!$M$20/100))*(LCC!$M$22*(1+$H$15))) -> 331.3408738 | V29: =((LCC!$M$21*(LCC!$M$20/100))*(LCC!$M$22*(1+$I$15))) -> 333.4206947 | W29: =((LCC!$M$21*(LCC!$M$20/100))*(LCC!$M$22*(1+$J$15))) -> 341.9344721 | X29: =((LCC!$M$21*(LCC!$M$20/100))*(LCC!$M$22*(1+$K$15))) -> 345.3382794 | Y29: =((LCC!$M$21*(LCC!$M$20/100))*(LCC!$M$22*(1+$L$15))) -> 346.8051547 | Z29: =((LCC!$M$21*(LCC!$M$20/100))*(LCC!$M$22*(1+$M$15))) -> 346.6591896 | AA29: =((LCC!$M$21*(LCC!$M$20/100))*(LCC!$M$22*(1+$N$15))) -> 334.3625325 | AB29: =SUM(Q29:INDEX(Q29:AA29,LCC!$M$6)) -> 3367.960528
B30: Petrol | C30: Forecasted price ($/gallon) | D30: 3.381 | E30: 3.02 | F30: 3.03 | G30: 3.26 | H30: =AB11 -> 14564.43924 | I30: =AB12 -> 450.8040718 | J30: =AB13 -> 13274.44605 | K30: =AB14 -> 15720.34712 | L30: =AB15 -> 3051.596794
C31: % increase/decrease | E31: -0.1079 | F31: -0.1054 | G31: -0.0328 | P31: ELECTRICITY | Q31: 2014 | R31: 2015 | S31: 2016 | T31: 2017 | U31: 2018 | V31: 2019 | W31: 2020 | X31: 2021 | Y31: 2022 | Z31: 2023 | AA31: 2024 | AB31: Total fuel price for period
B32: LPG | C32: Forecasted price ($/gallon) | D32: 2.18 | E32: 2.19 | F32: 2.25 | G32: 2.34 | H32: =AB18 -> 16087.15828 | I32: =AB19 -> 497.9358516 | J32: =AB20 -> 14662.29569 | K32: =AB21 -> 16980.02315 | L32: =AB22 -> 3370.642688 | P32: Product 1 | Q32: =((LCC!$E$21*(LCC!$E$20/100))*LCC!$E$22) -> 1575 | R32: =((LCC!$E$21*(LCC!$E$20/100))*(LCC!$E$22*(1+$E$18))) -> 1563.601329 | S32: =((LCC!$E$21*(LCC!$E$20/100))*(LCC!$E$22*(1+$F$18))) -> 1560.269826 | T32: =((LCC!$E$21*(LCC!$E$20/100))*(LCC!$E$22*(1+$G$18))) -> 1556.201305 | U32: =((LCC!$E$21*(LCC!$E$20/100))*(LCC!$E$22*(1+$H$18))) -> 1566.637646 | V32: =((LCC!$E$21*(LCC!$E$20/100))*(LCC!$E$22*(1+$I$18))) -> 1579.53261 | W32: =((LCC!$E$21*(LCC!$E$20/100))*(LCC!$E$22*(1+$J$18))) -> 1570.792101 | X32: =((LCC!$E$21*(LCC!$E$20/100))*(LCC!$E$22*(1+$K$18))) -> 1564.266839 | Y32: =((LCC!$E$21*(LCC!$E$20/100))*(LCC!$E$22*(1+$L$18))) -> 1551.751727 | Z32: =((LCC!$E$21*(LCC!$E$20/100))*(LCC!$E$22*(1+$M$18))) -> 1547.838424 | AA32: =((LCC!$E$21*(LCC!$E$20/100))*(LCC!$E$22*(1+$N$18))) -> 1567.236268 | AB32: =SUM(Q32:INDEX(Q32:AA32,LCC!$E$6)) -> 15635.89181
C33: % increase/decrease | E33: 0.0027 | F33: 0.0299 | G33: 0.0701 | P33: Product 2 | Q33: =((LCC!$G$21*(LCC!$G$20/100))*LCC!$G$22) -> 48.75 | R33: =((LCC!$G$21*(LCC!$G$20/100))*(LCC!$G$22*(1+$E$18))) -> 48.39718398 | S33: =((LCC!$G$21*(LCC!$G$20/100))*(LCC!$G$22*(1+$F$18))) -> 48.29406603 | T33: =((LCC!$G$21*(LCC!$G$20/100))*(LCC!$G$22*(1+$G$18))) -> 48.16813562 | U33: =((LCC!$G$21*(LCC!$G$20/100))*(LCC!$G$22*(1+$H$18))) -> 48.49116523 | V33: =((LCC!$G$21*(LCC!$G$20/100))*(LCC!$G$22*(1+$I$18))) -> 48.89029507 | W33: =((LCC!$G$21*(LCC!$G$20/100))*(LCC!$G$22*(1+$J$18))) -> 48.6197555 | X33: =((LCC!$G$21*(LCC!$G$20/100))*(LCC!$G$22*(1+$K$18))) -> 48.41778312 | Y33: =((LCC!$G$21*(LCC!$G$20/100))*(LCC!$G$22*(1+$L$18))) -> 48.03041059 | Z33: =((LCC!$G$21*(LCC!$G$20/100))*(LCC!$G$22*(1+$M$18))) -> 47.90928456 | AA33: =((LCC!$G$21*(LCC!$G$20/100))*(LCC!$G$22*(1+$N$18))) -> 48.509694 | AB33: =SUM(Q33:INDEX(Q33:AA33,LCC!$G$6)) -> 483.9680797
B34: Ethanol | C34: Forecasted price ($/gallon) | D34: 2.57 | E34: 2.58 | F34: 2.59 | G34: 2.6 | H34: =AB25 -> 16074.35707 | I34: =AB26 -> 497.5396235 | J34: =AB27 -> 14650.6283 | K34: =AB28 -> 16995.54002 | L34: =AB29 -> 3367.960528 | P34: Product 3 | Q34: =((LCC!$I$21*(LCC!$I$20/100))*LCC!$I$22) -> 1435.5 | R34: =((LCC!$I$21*(LCC!$I$20/100))*(LCC!$I$22*(1+$E$18))) -> 1425.110925 | S34: =((LCC!$I$21*(LCC!$I$20/100))*(LCC!$I$22*(1+$F$18))) -> 1422.074498 | T34: =((LCC!$I$21*(LCC!$I$20/100))*(LCC!$I$22*(1+$G$18))) -> 1418.366332 | U34: =((LCC!$I$21*(LCC!$I$20/100))*(LCC!$I$22*(1+$H$18))) -> 1427.878312 | V34: =((LCC!$I$21*(LCC!$I$20/100))*(LCC!$I$22*(1+$I$18))) -> 1439.63115 | W34: =((LCC!$I$21*(LCC!$I$20/100))*(LCC!$I$22*(1+$J$18))) -> 1431.6648 | X34: =((LCC!$I$21*(LCC!$I$20/100))*(LCC!$I$22*(1+$K$18))) -> 1425.717491 | Y34: =((LCC!$I$21*(LCC!$I$20/100))*(LCC!$I$22*(1+$L$18))) -> 1414.31086 | Z34: =((LCC!$I$21*(LCC!$I$20/100))*(LCC!$I$22*(1+$M$18))) -> 1410.744164 | AA34: =((LCC!$I$21*(LCC!$I$20/100))*(LCC!$I$22*(1+$N$18))) -> 1428.423913 | AB34: =SUM(Q34:INDEX(Q34:AA34,LCC!$I$6)) -> 14250.99853
C35: % increase/decrease | E35: 0.0034 | F35: 0.0104 | G35: 0.0132 | P35: Product 4 | Q35: =((LCC!$K$21*(LCC!$K$20/100))*LCC!$K$22) -> 1700 | R35: =((LCC!$K$21*(LCC!$K$20/100))*(LCC!$K$22*(1+$E$18))) -> 1687.696672 | S35: =((LCC!$K$21*(LCC!$K$20/100))*(LCC!$K$22*(1+$F$18))) -> 1684.100764 | T35: =((LCC!$K$21*(LCC!$K$20/100))*(LCC!$K$22*(1+$G$18))) -> 1679.709345 | U35: =((LCC!$K$21*(LCC!$K$20/100))*(LCC!$K$22*(1+$H$18))) -> 1690.973967 | V35: =((LCC!$K$21*(LCC!$K$20/100))*(LCC!$K$22*(1+$I$18))) -> 1704.892341 | W35: =((LCC!$K$21*(LCC!$K$20/100))*(LCC!$K$22*(1+$J$18))) -> 1695.458141 | X35: =((LCC!$K$21*(LCC!$K$20/100))*(LCC!$K$22*(1+$K$18))) -> 1688.415001 | Y35: =((LCC!$K$21*(LCC!$K$20/100))*(LCC!$K$22*(1+$L$9))) -> 1595.251671 | Z35: =((LCC!$K$21*(LCC!$K$20/100))*(LCC!$K$22*(1+$M$9))) -> 1622.580739 | AA35: =((LCC!$K$21*(LCC!$K$20/100))*(LCC!$K$22*(1+$N$18))) -> 1691.620099 | AB35: =SUM(Q35:INDEX(Q35:AA35,LCC!$K$6)) -> 16749.07864
B36: Electricity | C36: Forecasted price ($cents/Kwathour) | D36: 10.21 | E36: 10.1 | F36: 10.2 | G36: 10.16 | H36: =AB32 -> 15635.89181 | I36: =AB33 -> 483.9680797 | J36: =AB34 -> 14250.99853 | K36: =AB35 -> 16749.07864 | L36: =AB36 -> 3276.091617 | P36: Product 5 | Q36: =((LCC!$M$21*(LCC!$M$20/100))*LCC!$M$22) -> 330 | R36: =((LCC!$M$21*(LCC!$M$20/100))*(LCC!$M$22*(1+$E$18))) -> 327.611707 | S36: =((LCC!$M$21*(LCC!$M$20/100))*(LCC!$M$22*(1+$F$18))) -> 326.9136778 | T36: =((LCC!$M$21*(LCC!$M$20/100))*(LCC!$M$22*(1+$G$18))) -> 326.0612257 | U36: =((LCC!$M$21*(LCC!$M$20/100))*(LCC!$M$22*(1+$H$18))) -> 328.2478877 | V36: =((LCC!$M$21*(LCC!$M$20/100))*(LCC!$M$22*(1+$I$18))) -> 330.9496897 | W36: =((LCC!$M$21*(LCC!$M$20/100))*(LCC!$M$22*(1+$J$18))) -> 329.1183449 | X36: =((LCC!$M$21*(LCC!$M$20/100))*(LCC!$M$22*(1+$K$18))) -> 327.7511473 | Y36: =((LCC!$M$21*(LCC!$M$20/100))*(LCC!$M$22*(1+$L$18))) -> 325.1289333 | Z36: =((LCC!$M$21*(LCC!$M$20/100))*(LCC!$M$22*(1+$M$18))) -> 324.3090031 | AA36: =((LCC!$M$21*(LCC!$M$20/100))*(LCC!$M$22*(1+$N$18))) -> 328.3733133 | AB36: =SUM(Q36:INDEX(Q36:AA36,LCC!$M$6)) -> 3276.091617
C37: % increase/decrease | E37: -0.0119 | F37: 0.0029 | G37: -0.49
B38: Biodiesel | C38: Forecasted price ($/100 liters) | D38: 156.2 | E38: 154.7 | F38: 159.8 | G38: 177.6 | H38: =AB39 -> 16254.30379 | I38: =AB40 -> 503.109403 | J38: =AB41 -> 14814.63688 | K38: =AB42 -> 16984.70866 | L38: =AB43 -> 3405.663651 | P38: BIODIESEL | Q38: 2014 | R38: 2015 | S38: 2016 | T38: 2017 | U38: 2018 | V38: 2019 | W38: 2020 | X38: 2021 | Y38: 2022 | Z38: 2023 | AA38: 2024 | AB38: Total fuel price for period
C39: % increase/decrease | E39: -0.0083 | F39: 0.0247 | G39: 0.1317 | P39: Product 1 | Q39: =((LCC!$E$21*(LCC!$E$20/100))*LCC!$E$22) -> 1575 | R39: =((LCC!$E$21*(LCC!$E$20/100))*(LCC!$E$22*(1+$E$21))) -> 1547.775288 | S39: =((LCC!$E$21*(LCC!$E$20/100))*(LCC!$E$22*(1+$F$21))) -> 1499.550532 | T39: =((LCC!$E$21*(LCC!$E$20/100))*(LCC!$E$22*(1+$G$21))) -> 1562.000129 | U39: =((LCC!$E$21*(LCC!$E$20/100))*(LCC!$E$22*(1+$H$21))) -> 1613.923206 | V39: =((LCC!$E$21*(LCC!$E$20/100))*(LCC!$E$22*(1+$I$21))) -> 1613.923206 | W39: =((LCC!$E$21*(LCC!$E$20/100))*(LCC!$E$22*(1+$J$21))) -> 1658.275521 | X39: =((LCC!$E$21*(LCC!$E$20/100))*(LCC!$E$22*(1+$K$21))) -> 1684.158053 | Y39: =((LCC!$E$21*(LCC!$E$20/100))*(LCC!$E$22*(1+$L$21))) -> 1740.74488 | Z39: =((LCC!$E$21*(LCC!$E$20/100))*(LCC!$E$22*(1+$M$21))) -> 1758.952972 | AA39: =((LCC!$E$21*(LCC!$E$20/100))*(LCC!$E$22*(1+$N$21))) -> 1782.352972 | AB39: =SUM(Q39:INDEX(Q39:AA39,LCC!$E$6)) -> 16254.30379
B40: Natural Gas | C40: Forecasted price ($/millionBtu) | D40: 16.09 | E40: 16.73 | F40: 17.17 | G40: 18.17 | H40: =AB46 -> 16610.55626 | I40: =AB47 -> 514.136265 | J40: =AB48 -> 15139.33556 | K40: =AB49 -> 17394.78115 | L40: =AB50 -> 3480.307025 | P40: Product 2 | Q40: =((LCC!$G$21*(LCC!$G$20/100))*LCC!$G$22) -> 48.75 | R40: =((LCC!$G$21*(LCC!$G$20/100))*(LCC!$G$22*(1+$E$21))) -> 47.90733035 | S40: =((LCC!$G$21*(LCC!$G$20/100))*(LCC!$G$22*(1+$F$21))) -> 46.41465934 | T40: =((LCC!$G$21*(LCC!$G$20/100))*(LCC!$G$22*(1+$G$21))) -> 48.34762305 | U40: =((LCC!$G$21*(LCC!$G$20/100))*(LCC!$G$22*(1+$H$21))) -> 49.9547659 | V40: =((LCC!$G$21*(LCC!$G$20/100))*(LCC!$G$22*(1+$I$21))) -> 49.9547659 | W40: =((LCC!$G$21*(LCC!$G$20/100))*(LCC!$G$22*(1+$J$21))) -> 51.32757566 | X40: =((LCC!$G$21*(LCC!$G$20/100))*(LCC!$G$22*(1+$K$21))) -> 52.12870165 | Y40: =((LCC!$G$21*(LCC!$G$20/100))*(LCC!$G$22*(1+$L$21))) -> 53.88019866 | Z40: =((LCC!$G$21*(LCC!$G$20/100))*(LCC!$G$22*(1+$M$21))) -> 54.44378248 | AA40: =((LCC!$G$21*(LCC!$G$20/100))*(LCC!$G$22*(1+$N$21))) -> 55.16806819 | AB40: =SUM(Q40:INDEX(Q40:AA40,LCC!$G$6)) -> 503.109403
C41: % increase/decrease | E41: 0.0394 | F41: 0.0656 | G41: 0.1225 | P41: Product 3 | Q41: =((LCC!$I$21*(LCC!$I$20/100))*LCC!$I$22) -> 1435.5 | R41: =((LCC!$I$21*(LCC!$I$20/100))*(LCC!$I$22*(1+$E$21))) -> 1410.68662 | S41: =((LCC!$I$21*(LCC!$I$20/100))*(LCC!$I$22*(1+$F$21))) -> 1366.7332 | T41: =((LCC!$I$21*(LCC!$I$20/100))*(LCC!$I$22*(1+$G$21))) -> 1423.651546 | U41: =((LCC!$I$21*(LCC!$I$20/100))*(LCC!$I$22*(1+$H$21))) -> 1470.975722 | V41: =((LCC!$I$21*(LCC!$I$20/100))*(LCC!$I$22*(1+$I$21))) -> 1470.975722 | W41: =((LCC!$I$21*(LCC!$I$20/100))*(LCC!$I$22*(1+$J$21))) -> 1511.39969 | X41: =((LCC!$I$21*(LCC!$I$20/100))*(LCC!$I$22*(1+$K$21))) -> 1534.989769 | Y41: =((LCC!$I$21*(LCC!$I$20/100))*(LCC!$I$22*(1+$L$21))) -> 1586.564619 | Z41: =((LCC!$I$21*(LCC!$I$20/100))*(LCC!$I$22*(1+$M$21))) -> 1603.159995 | AA41: =((LCC!$I$21*(LCC!$I$20/100))*(LCC!$I$22*(1+$N$21))) -> 1624.487423 | AB41: =SUM(Q41:INDEX(Q41:AA41,LCC!$I$6)) -> 14814.63688
P42: Product 4 | Q42: =((LCC!$K$21*(LCC!$K$20/100))*LCC!$K$22) -> 1700 | R42: =((LCC!$K$21*(LCC!$K$20/100))*(LCC!$K$22*(1+$E$21))) -> 1670.614597 | S42: =((LCC!$K$21*(LCC!$K$20/100))*(LCC!$K$22*(1+$F$21))) -> 1618.562479 | T42: =((LCC!$K$21*(LCC!$K$20/100))*(LCC!$K$22*(1+$G$21))) -> 1685.968393 | U42: =((LCC!$K$21*(LCC!$K$20/100))*(LCC!$K$22*(1+$H$21))) -> 1742.012349 | V42: =((LCC!$K$21*(LCC!$K$20/100))*(LCC!$K$22*(1+$I$21))) -> 1742.012349 | W42: =((LCC!$K$21*(LCC!$K$20/100))*(LCC!$K$22*(1+$J$21))) -> 1789.88469 | X42: =((LCC!$K$21*(LCC!$K$20/100))*(LCC!$K$22*(1+$K$21))) -> 1817.821391 | Y42: =((LCC!$K$21*(LCC!$K$20/100))*(LCC!$K$22*(1+$L$9))) -> 1595.251671 | Z42: =((LCC!$K$21*(LCC!$K$20/100))*(LCC!$K$22*(1+$M$9))) -> 1622.580739 | AA42: =((LCC!$K$21*(LCC!$K$20/100))*(LCC!$K$22*(1+$N$21))) -> 1923.809557 | AB42: =SUM(Q42:INDEX(Q42:AA42,LCC!$K$6)) -> 16984.70866
P43: Product 5 | Q43: =((LCC!$M$21*(LCC!$M$20/100))*LCC!$M$22) -> 330 | R43: =((LCC!$M$21*(LCC!$M$20/100))*(LCC!$M$22*(1+$E$21))) -> 324.2957746 | S43: =((LCC!$M$21*(LCC!$M$20/100))*(LCC!$M$22*(1+$F$21))) -> 314.1915401 | T43: =((LCC!$M$21*(LCC!$M$20/100))*(LCC!$M$22*(1+$G$21))) -> 327.2762175 | U43: =((LCC!$M$21*(LCC!$M$20/100))*(LCC!$M$22*(1+$H$21))) -> 338.1553384 | V43: =((LCC!$M$21*(LCC!$M$20/100))*(LCC!$M$22*(1+$I$21))) -> 338.1553384 | W43: =((LCC!$M$21*(LCC!$M$20/100))*(LCC!$M$22*(1+$J$21))) -> 347.4482045 | X43: =((LCC!$M$21*(LCC!$M$20/100))*(LCC!$M$22*(1+$K$21))) -> 352.8712112 | Y43: =((LCC!$M$21*(LCC!$M$20/100))*(LCC!$M$22*(1+$L$21))) -> 364.7274986 | Z43: =((LCC!$M$21*(LCC!$M$20/100))*(LCC!$M$22*(1+$M$21))) -> 368.5425275 | AA43: =((LCC!$M$21*(LCC!$M$20/100))*(LCC!$M$22*(1+$N$21))) -> 373.4453847 | AB43: =SUM(Q43:INDEX(Q43:AA43,LCC!$M$6)) -> 3405.663651
A44: Sources: | B44: OECD-FAO Agricultural outlook
B45: US-Energy Administration | P45: NATURAL GAS | Q45: 2014 | R45: 2015 | S45: 2016 | T45: 2017 | U45: 2018 | V45: 2019 | W45: 2020 | X45: 2021 | Y45: 2022 | Z45: 2023 | AA45: 2024 | AB45: Total fuel price for period
P46: Product 1 | Q46: =((LCC!$E$21*(LCC!$E$20/100))*LCC!$E$22) -> 1575 | R46: =((LCC!$E$21*(LCC!$E$20/100))*(LCC!$E$22*(1+$E$24))) -> 1575.978869 | S46: =((LCC!$E$21*(LCC!$E$20/100))*(LCC!$E$22*(1+$F$24))) -> 1617.065825 | T46: =((LCC!$E$21*(LCC!$E$20/100))*(LCC!$E$22*(1+$G$24))) -> 1637.087012 | U46: =((LCC!$E$21*(LCC!$E$20/100))*(LCC!$E$22*(1+$H$24))) -> 1664.388267 | V46: =((LCC!$E$21*(LCC!$E$20/100))*(LCC!$E$22*(1+$I$24))) -> 1678.268996 | W46: =((LCC!$E$21*(LCC!$E$20/100))*(LCC!$E$22*(1+$J$24))) -> 1686.524674 | X46: =((LCC!$E$21*(LCC!$E$20/100))*(LCC!$E$22*(1+$K$24))) -> 1700.212391 | Y46: =((LCC!$E$21*(LCC!$E$20/100))*(LCC!$E$22*(1+$L$24))) -> 1726.447314 | Z46: =((LCC!$E$21*(LCC!$E$20/100))*(LCC!$E$22*(1+$M$24))) -> 1749.582907 | AA46: =((LCC!$E$21*(LCC!$E$20/100))*(LCC!$E$22*(1+$N$24))) -> 1767.998831 | AB46: =SUM(Q46:INDEX(Q46:AA46,LCC!$E$6)) -> 16610.55626
A47: *** All price forecasts were taken for the transportation sector | P47: Product 2 | Q47: =((LCC!$G$21*(LCC!$G$20/100))*LCC!$G$22) -> 48.75 | R47: =((LCC!$G$21*(LCC!$G$20/100))*(LCC!$G$22*(1+$E$24))) -> 48.78029832 | S47: =((LCC!$G$21*(LCC!$G$20/100))*(LCC!$G$22*(1+$F$24))) -> 50.05203745 | T47: =((LCC!$G$21*(LCC!$G$20/100))*(LCC!$G$22*(1+$G$24))) -> 50.67174084 | U47: =((LCC!$G$21*(LCC!$G$20/100))*(LCC!$G$22*(1+$H$24))) -> 51.51677969 | V47: =((LCC!$G$21*(LCC!$G$20/100))*(LCC!$G$22*(1+$I$24))) -> 51.94642129 | W47: =((LCC!$G$21*(LCC!$G$20/100))*(LCC!$G$22*(1+$J$24))) -> 52.2019542 | X47: =((LCC!$G$21*(LCC!$G$20/100))*(LCC!$G$22*(1+$K$24))) -> 52.62562164 | Y47: =((LCC!$G$21*(LCC!$G$20/100))*(LCC!$G$22*(1+$L$24))) -> 53.43765495 | Z47: =((LCC!$G$21*(LCC!$G$20/100))*(LCC!$G$22*(1+$M$24))) -> 54.15375665 | AA47: =((LCC!$G$21*(LCC!$G$20/100))*(LCC!$G$22*(1+$N$24))) -> 54.72377335 | AB47: =SUM(Q47:INDEX(Q47:AA47,LCC!$G$6)) -> 514.136265
P48: Product 3 | Q48: =((LCC!$I$21*(LCC!$I$20/100))*LCC!$I$22) -> 1435.5 | R48: =((LCC!$I$21*(LCC!$I$20/100))*(LCC!$I$22*(1+$E$24))) -> 1436.392169 | S48: =((LCC!$I$21*(LCC!$I$20/100))*(LCC!$I$22*(1+$F$24))) -> 1473.839995 | T48: =((LCC!$I$21*(LCC!$I$20/100))*(LCC!$I$22*(1+$G$24))) -> 1492.087876 | U48: =((LCC!$I$21*(LCC!$I$20/100))*(LCC!$I$22*(1+$H$24))) -> 1516.971021 | V48: =((LCC!$I$21*(LCC!$I$20/100))*(LCC!$I$22*(1+$I$24))) -> 1529.622313 | W48: =((LCC!$I$21*(LCC!$I$20/100))*(LCC!$I$22*(1+$J$24))) -> 1537.146774 | X48: =((LCC!$I$21*(LCC!$I$20/100))*(LCC!$I$22*(1+$K$24))) -> 1549.622151 | Y48: =((LCC!$I$21*(LCC!$I$20/100))*(LCC!$I$22*(1+$L$24))) -> 1573.533409 | Z48: =((LCC!$I$21*(LCC!$I$20/100))*(LCC!$I$22*(1+$M$24))) -> 1594.61985 | AA48: =((LCC!$I$21*(LCC!$I$20/100))*(LCC!$I$22*(1+$N$24))) -> 1611.404649 | AB48: =SUM(Q48:INDEX(Q48:AA48,LCC!$I$6)) -> 15139.33556
P49: Product 4 | Q49: =((LCC!$K$21*(LCC!$K$20/100))*LCC!$K$22) -> 1700 | R49: =((LCC!$K$21*(LCC!$K$20/100))*(LCC!$K$22*(1+$E$24))) -> 1701.056557 | S49: =((LCC!$K$21*(LCC!$K$20/100))*(LCC!$K$22*(1+$F$24))) -> 1745.404383 | T49: =((LCC!$K$21*(LCC!$K$20/100))*(LCC!$K$22*(1+$G$24))) -> 1767.014552 | U49: =((LCC!$K$21*(LCC!$K$20/100))*(LCC!$K$22*(1+$H$24))) -> 1796.482574 | V49: =((LCC!$K$21*(LCC!$K$20/100))*(LCC!$K$22*(1+$I$24))) -> 1811.464948 | W49: =((LCC!$K$21*(LCC!$K$20/100))*(LCC!$K$22*(1+$J$24))) -> 1820.375839 | X49: =((LCC!$K$21*(LCC!$K$20/100))*(LCC!$K$22*(1+$K$24))) -> 1835.149883 | Y49: =((LCC!$K$21*(LCC!$K$20/100))*(LCC!$K$22*(1+$L$9))) -> 1595.251671 | Z49: =((LCC!$K$21*(LCC!$K$20/100))*(LCC!$K$22*(1+$M$9))) -> 1622.580739 | AA49: =((LCC!$K$21*(LCC!$K$20/100))*(LCC!$K$22*(1+$N$24))) -> 1908.316199 | AB49: =SUM(Q49:INDEX(Q49:AA49,LCC!$K$6)) -> 17394.78115
P50: Product 5 | Q50: =((LCC!$M$21*(LCC!$M$20/100))*LCC!$M$22) -> 330 | R50: =((LCC!$M$21*(LCC!$M$20/100))*(LCC!$M$22*(1+$E$24))) -> 330.2050963 | S50: =((LCC!$M$21*(LCC!$M$20/100))*(LCC!$M$22*(1+$F$24))) -> 338.813792 | T50: =((LCC!$M$21*(LCC!$M$20/100))*(LCC!$M$22*(1+$G$24))) -> 343.0087072 | U50: =((LCC!$M$21*(LCC!$M$20/100))*(LCC!$M$22*(1+$H$24))) -> 348.7289702 | V50: =((LCC!$M$21*(LCC!$M$20/100))*(LCC!$M$22*(1+$I$24))) -> 351.6373134 | W50: =((LCC!$M$21*(LCC!$M$20/100))*(LCC!$M$22*(1+$J$24))) -> 353.3670746 | X50: =((LCC!$M$21*(LCC!$M$20/100))*(LCC!$M$22*(1+$K$24))) -> 356.2349772 | Y50: =((LCC!$M$21*(LCC!$M$20/100))*(LCC!$M$22*(1+$L$24))) -> 361.7318181 | Z50: =((LCC!$M$21*(LCC!$M$20/100))*(LCC!$M$22*(1+$M$24))) -> 366.5792758 | AA50: =((LCC!$M$21*(LCC!$M$20/100))*(LCC!$M$22*(1+$N$24))) -> 370.4378504 | AB50: =SUM(Q50:INDEX(Q50:AA50,LCC!$M$6)) -> 3480.307025
P52: BATTERY | Q52: 2014 | R52: 2015 | S52: 2016 | T52: 2017 | U52: 2018 | V52: 2019 | W52: 2020 | X52: 2021 | Y52: 2022 | Z52: 2023 | AA52: 2024 | AB52: Cost of replacements for period
P53: Product 1 | Q53: 0 | R53: =IF(LCC!$E$24=1,LCC!$E$23,0) -> 0 | S53: =IF(OR(LCC!$E$24=1,$E$24=2),LCC!$E$23,0) -> 0 | T53: =IF(OR(LCC!$E$24=1,LCC!$E$24=3),LCC!$E$23,0) -> 0 | U53: =IF(OR(LCC!$E$24=1,LCC!$E$24=2,LCC!$E$24=4),LCC!$E$23,0) -> 0 | V53: =IF(OR(LCC!$E$24=1,LCC!$E$24=5),LCC!$E$23,0) -> 0 | W53: =IF(OR(LCC!$E$24=1,LCC!$E$24=2,LCC!$E$24=3,LCC!$E$24=6),LCC!$E$23,0) -> 0 | X53: =IF(OR(LCC!$E$24=1,LCC!$E$24=7),LCC!$E$23,0) -> 0 | Y53: =IF(OR(LCC!$E$24=1,LCC!$E$24=2,LCC!$E$24=4,LCC!$E$24=8),LCC!$E$23,0) -> 0 | Z53: =IF(OR(LCC!$E$24=1,LCC!$E$24=3,LCC!$E$24=9),LCC!$E$23,0) -> 0 | AA53: =IF(OR(LCC!$E$24=1,LCC!$E$24=2,LCC!$E$24=5,LCC!$E$24=10),LCC!$E$23,0) -> 0 | AB53: =SUM(Q53:INDEX(Q53:AA53,LCC!$E$6)) -> 0
P54: Product 2 | Q54: 0 | R54: =IF(LCC!$G$24=1,LCC!$G$23,0) -> 0 | S54: =IF(OR(LCC!$G$24=1,$G$24=2),LCC!$G$23,0) -> 0 | T54: =IF(OR(LCC!$G$24=1,LCC!$G$24=3),LCC!$G$23,0) -> 0 | U54: =IF(OR(LCC!$G$24=1,LCC!$G$24=2,LCC!$G$24=4),LCC!$G$23,0) -> 0 | V54: =IF(OR(LCC!$G$24=1,LCC!$G$24=5),LCC!$G$23,0) -> 3000 | W54: =IF(OR(LCC!$G$24=1,LCC!$G$24=2,LCC!$G$24=3,LCC!$G$24=6),LCC!$G$23,0) -> 0 | X54: =IF(OR(LCC!$G$24=1,LCC!$G$24=7),LCC!$G$23,0) -> 0 | Y54: =IF(OR(LCC!$G$24=1,LCC!$G$24=2,LCC!$G$24=4,LCC!$G$24=8),LCC!$G$23,0) -> 0 | Z54: =IF(OR(LCC!$G$24=1,LCC!$G$24=3,LCC!$G$24=9),LCC!$G$23,0) -> 0 | AA54: =IF(OR(LCC!$G$24=1,LCC!$G$24=2,LCC!$G$24=5,LCC!$G$24=10),LCC!$G$23,0) -> 3000 | AB54: =SUM(Q54:INDEX(Q54:AA54,LCC!$E$6)) -> 3000
P55: Product 3 | Q55: 0 | R55: =IF(LCC!$I$24=1,LCC!$I$23,0) -> 0 | S55: =IF(OR(LCC!$I$24=1,$I$24=2),LCC!$I$23,0) -> 0 | T55: =IF(OR(LCC!$I$24=1,LCC!$I$24=3),LCC!$I$23,0) -> 0 | U55: =IF(OR(LCC!$I$24=1,LCC!$I$24=2,LCC!$I$24=4),LCC!$I$23,0) -> 0 | V55: =IF(OR(LCC!$I$24=1,LCC!$I$24=5),LCC!$I$23,0) -> 0 | W55: =IF(OR(LCC!$I$24=1,LCC!$I$24=2,LCC!$I$24=3,LCC!$I$24=6),LCC!$I$23,0) -> 0 | X55: =IF(OR(LCC!$I$24=1,LCC!$I$24=7),LCC!$I$23,0) -> 0 | Y55: =IF(OR(LCC!$I$24=1,LCC!$I$24=2,LCC!$I$24=4,LCC!$I$24=8),LCC!$I$23,0) -> 0 | Z55: =IF(OR(LCC!$I$24=1,LCC!$I$24=3,LCC!$I$24=9),LCC!$I$23,0) -> 0 | AA55: =IF(OR(LCC!$I$24=1,LCC!$I$24=2,LCC!$I$24=5,LCC!$I$24=10),LCC!$I$23,0) -> 0 | AB55: =SUM(Q55:INDEX(Q55:AA55,LCC!$E$6)) -> 0
P56: Product 4 | Q56: 0 | R56: =IF(LCC!$K$24=1,LCC!$K$23,0) -> 0 | S56: =IF(OR(LCC!$K$24=1,$K$24=2),LCC!$K$23,0) -> 0 | T56: =IF(OR(LCC!$K$24=1,LCC!$K$24=3),LCC!$K$23,0) -> 0 | U56: =IF(OR(LCC!$K$24=1,LCC!$K$24=2,LCC!$K$24=4),LCC!$K$23,0) -> 0 | V56: =IF(OR(LCC!$K$24=1,LCC!$K$24=5),LCC!$K$23,0) -> 0 | W56: =IF(OR(LCC!$K$24=1,LCC!$K$24=2,LCC!$K$24=3,LCC!$K$24=6),LCC!$K$23,0) -> 0 | X56: =IF(OR(LCC!$K$24=1,LCC!$K$24=7),LCC!$K$23,0) -> 0 | Y56: =IF(OR(LCC!$K$24=1,LCC!$K$24=2,LCC!$K$24=4,LCC!$K$24=8),LCC!$K$23,0) -> 0 | Z56: =IF(OR(LCC!$K$24=1,LCC!$K$24=3,LCC!$K$24=9),LCC!$K$23,0) -> 0 | AA56: =IF(OR(LCC!$K$24=1,LCC!$K$24=2,LCC!$K$24=5,LCC!$K$24=10),LCC!$K$23,0) -> 0 | AB56: =SUM(Q56:INDEX(Q56:AA56,LCC!$E$6)) -> 0
P57: Product 5 | Q57: 0 | R57: =IF(LCC!$M$24=1,LCC!$M$23,0) -> 0 | S57: =IF(OR(LCC!$M$24=1,$M$24=2),LCC!$M$23,0) -> 0 | T57: =IF(OR(LCC!$M$24=1,LCC!$M$24=3),LCC!$M$23,0) -> 0 | U57: =IF(OR(LCC!$M$24=1,LCC!$M$24=2,LCC!$M$24=4),LCC!$M$23,0) -> 0 | V57: =IF(OR(LCC!$M$24=1,LCC!$M$24=5),LCC!$M$23,0) -> 0 | W57: =IF(OR(LCC!$M$24=1,LCC!$M$24=2,LCC!$M$24=3,LCC!$M$24=6),LCC!$M$23,0) -> 0 | X57: =IF(OR(LCC!$M$24=1,LCC!$M$24=7),LCC!$M$23,0) -> 0 | Y57: =IF(OR(LCC!$M$24=1,LCC!$M$24=2,LCC!$M$24=4,LCC!$M$24=8),LCC!$M$23,0) -> 0 | Z57: =IF(OR(LCC!$M$24=1,LCC!$M$24=3,LCC!$M$24=9),LCC!$M$23,0) -> 0 | AA57: =IF(OR(LCC!$M$24=1,LCC!$M$24=2,LCC!$M$24=5,LCC!$M$24=10),LCC!$M$23,0) -> 0 | AB57: =SUM(Q57:INDEX(Q57:AA57,LCC!$E$6)) -> 0

Sheet Calculations (hidden)
A1: FOR CALCULATIONS ONLY - DO NOT AMEND!
D3: Product 1 | E3: Product 2 | F3: Product 3 | G3: Product 4 | H3: Product 5
C4: Type of Fuel | D4: =MATCH(LCC!E19,$B$20:$B$30,0) -> 1 | E4: =MATCH(LCC!G19,$B$20:$B$30,0) -> 4 | F4: =MATCH(LCC!I19,$B$20:$B$30,0) -> 6 | G4: =MATCH(LCC!K19,$B$20:$B$30,0) ->  | H4: =MATCH(LCC!M19,$B$20:$B$30,0) -> 
C5: Reference Fuel (1 = diesel, 2 = petrol) | D5: 1
C6: Fuel payment per period | D6: =(INDEX(G20:G30,D4))/LCC!E6 -> 1559.69768 | E6: =(INDEX(H20:H30,E4))/LCC!G6 -> 48.39680797 | F6: =(INDEX(I20:I30,F4))/LCC!I6 -> 1466.229569 | G6: =(INDEX(J20:J30,G4))/LCC!K6 ->  | H6: =(INDEX(K20:K30,H4))/LCC!M6 -> 
C7: Average annual battery price | D7: ='Fuel Prices'!AB53/LCC!E6 -> 0 | E7: ='Fuel Prices'!AB54/LCC!E6 -> 300 | F7: ='Fuel Prices'!AB55/LCC!E6 -> 0 | G7: ='Fuel Prices'!AB56/LCC!E6 -> 0 | H7: ='Fuel Prices'!AB57/LCC!E6 -> 0
C8: Fuel price per litre using own values | D8: =IF(INDEX(LCC!$C$77:$D$87,Calculations!D4,2)>0,LCC!E22-CUMIPMT(INDEX(LCC!$C$77:$D$87,Calculations!D4,2),LCC!$E$6,LCC!E22,1,LCC!$E$6,1),LCC!E22*(1+(INDEX(LCC!$C$77:$D$87,Calculations!E4,2))^LCC!$E$6)) -> 1.528011167 | E8: =IF(INDEX(LCC!$C$77:$D$87,Calculations!E4,2)>0,LCC!G22-CUMIPMT(INDEX(LCC!$C$77:$D$87,Calculations!E4,2),LCC!$E$6,LCC!G22,1,LCC!$E$6,1),LCC!G22*(1+(INDEX(LCC!$C$77:$D$87,Calculations!E4,2))^LCC!$E$6)) -> 0.1358977223 | F8: =IF(INDEX(LCC!$C$77:$D$87,Calculations!F4,2)>0,LCC!I22-CUMIPMT(INDEX(LCC!$C$77:$D$87,Calculations!F4,2),LCC!$E$6,LCC!I22,1,LCC!$E$6,1),LCC!I22*(1+(INDEX(LCC!$C$77:$D$87,Calculations!F4,2))^LCC!$E$6)) -> 1.356714595 | G8: =IF(INDEX(LCC!$C$77:$D$87,Calculations!G4,2)>0,LCC!K22-CUMIPMT(INDEX(LCC!$C$77:$D$87,Calculations!G4,2),LCC!$E$6,LCC!K22,1,LCC!$E$6,1),LCC!K22*(1+(INDEX(LCC!$C$77:$D$87,Calculations!G4,2))^LCC!$E$6)) ->  | H8: =IF(INDEX(LCC!$C$77:$D$87,Calculations!H4,2)>0,LCC!M22-CUMIPMT(INDEX(LCC!$C$77:$D$87,Calculations!H4,2),LCC!$E$6,LCC!M22,1,LCC!$E$6,1),LCC!M22*(1+(INDEX(LCC!$C$77:$D$87,Calculations!H4,2))^LCC!$E$6)) -> 
C9: Fuel consumption per vehicle | D9: =LCC!E$20 -> 7.5 | E9: =LCC!G$20 -> 2.5 | F9: =LCC!I$20 -> 8.7 | G9: =LCC!K$20 -> 10 | H9: =LCC!M$20 -> 11
C10: Energy Content | D10: =INDEX($C$20:$C$30,D$4) -> 36 | E10: =INDEX($C$20:$C$30,E$4) -> 3.6 | F10: =INDEX($C$20:$C$30,F$4) -> 24 | G10: =INDEX($C$20:$C$30,G$4) ->  | H10: =INDEX($C$20:$C$30,H$4) -> 
C11: Energy Consumption (MJ/km) | D11: =(D9/100)*D10 -> 2.7 | E11: =(E9/100)*E10 -> 0.09 | F11: =(F9/100)*F10 -> 2.088 | G11: =(G9/100)*G10 ->  | H11: =(H9/100)*H10 -> 
C12: Cost for reference fuel per litre (€/l) | D12: =LCC!E$53 -> 0.8 | E12: =LCC!G$53 -> 0.8 | F12: =LCC!I$53 -> 0.8 | G12: =LCC!K$53 -> 1.2 | H12: =LCC!M$53 -> 1.2
C13: Energy content of reference fuel | D13: =IF($D$5=1,$C$20, IF($D$5=2,$C$21, "INCORRECT")) -> 36 | E13: =IF($D$5=1,$C$20, IF($D$5=2,$C$21, "INCORRECT")) -> 36 | F13: =IF($D$5=1,$C$20, IF($D$5=2,$C$21, "INCORRECT")) -> 36 | G13: =IF($D$5=1,$C$20, IF($D$5=2,$C$21, "INCORRECT")) -> 36 | H13: =IF($D$5=1,$C$20, IF($D$5=2,$C$21, "INCORRECT")) -> 36
C14: Cost per unit of energy (€/MJ) | D14: =D12/D13 -> 0.02222222222 | E14: =E12/E13 -> 0.02222222222 | F14: =F12/F13 -> 0.02222222222 | G14: =G12/G13 -> 0.03333333333 | H14: =H12/H13 -> 0.03333333333
C15: Lifetime mileage (km) | D15: =LCC!E21*LCC!E$6 -> 150000 | E15: =LCC!G21*LCC!$E$6 -> 150000 | F15: =LCC!I21*LCC!$E$6 -> 150000 | G15: =LCC!K21*LCC!$E$6 -> 200000 | H15: =LCC!M21*LCC!$E$6 -> 200000
C16: Lifetime cost of energy consumption (€) | D16: =D11*D14*D15 -> 9000 | E16: =E11*E14*E15 -> 300 | F16: =F11*F14*F15 -> 6960 | G16: =G11*G14*G15 ->  | H16: =H11*H14*H15 -> 
G18: Total Fuel costs for specified period
B19: Fuel Type | C19: Energy Content | D19: Unit Energy Content | E19: Unit fuel consumption | F19: Unit fuel Cost | G19: Product 1 | H19: Product 2 | I19: Product 3 | J19: Product 4 | K19: Product 5
B20: Diesel | C20: 36 | D20: MJ/l | E20: l/100km | F20: €/l | G20: ='Fuel Prices'!$H$28 -> 15596.9768 | H20: ='Fuel Prices'!$I$28 -> 482.7635677 | I20: ='Fuel Prices'!$J$28 -> 14215.53029 | J20: ='Fuel Prices'!$K$28 -> 16834.8321 | K20: ='Fuel Prices'!$L$28 -> 3267.937997
B21: Petrol | C21: 32 | D21: MJ/l | E21: l/100km | F21: €/l | G21: ='Fuel Prices'!$H$30 -> 14564.43924 | H21: ='Fuel Prices'!$I$30 -> 450.8040718 | I21: ='Fuel Prices'!$J$30 -> 13274.44605 | J21: ='Fuel Prices'!$K$30 -> 15720.34712 | K21: ='Fuel Prices'!$L$30 -> 3051.596794
B22: Natural Gas/Biogas | C22: 35 | D22: MJ/Nm3 | E22: Nm3/100km | F22: €/Nm3 | G22: ='Fuel Prices'!$H$40 -> 16610.55626 | H22: ='Fuel Prices'!$I$40 -> 514.136265 | I22: ='Fuel Prices'!$J$40 -> 15139.33556 | J22: ='Fuel Prices'!$K$40 -> 17394.78115 | K22: ='Fuel Prices'!$L$40 -> 3480.307025
B23: Electricity | C23: 3.6 | D23: MJ/kWh | E23: kWh/100km | F23: €/kWh | G23: ='Fuel Prices'!$H$36 -> 15635.89181 | H23: ='Fuel Prices'!$I$36 -> 483.9680797 | I23: ='Fuel Prices'!$J$36 -> 14250.99853 | J23: ='Fuel Prices'!$K$36 -> 16749.07864 | K23: ='Fuel Prices'!$L$36 -> 3276.091617
B24: Biodiesel | C24: 33 | D24: MJ/l | E24: l/100km | F24: €/l | G24: ='Fuel Prices'!$H$38 -> 16254.30379 | H24: ='Fuel Prices'!$I$38 -> 503.109403 | I24: ='Fuel Prices'!$J$38 -> 14814.63688 | J24: ='Fuel Prices'!$K$38 -> 16984.70866 | K24: ='Fuel Prices'!$L$38 -> 3405.663651
B25: LPG | C25: 24 | D25: MJ/l | E25: l/100km | F25: €/l | G25: ='Fuel Prices'!$H$32 -> 16087.15828 | H25: ='Fuel Prices'!$I$32 -> 497.9358516 | I25: ='Fuel Prices'!$J$32 -> 14662.29569 | J25: ='Fuel Prices'!$K$32 -> 16980.02315 | K25: ='Fuel Prices'!$L$32 -> 3370.642688
B26: Ethanol | C26: 21 | D26: MJ/l | E26: l/100km | F26: €/l | G26: ='Fuel Prices'!$H$34 -> 16074.35707 | H26: ='Fuel Prices'!$I$34 -> 497.5396235 | I26: ='Fuel Prices'!$J$34 -> 14650.6283 | J26: ='Fuel Prices'!$K$34 -> 16995.54002 | K26: ='Fuel Prices'!$L$34 -> 3367.960528
B27: Hydrogen (gas) | C27: 11 | D27: MJ/Nm3 | E27: Nm3/100km | F27: €/Nm3
B28: Hydrogen (liquid - l/100km) | C28: 8.6 | D28: MJ/l | E28: l/100km | F28: €/l
B29: Hydrogen (liquid - kg/100km) | C29: 120 | D29: MJ/kg | E29: kg/100km | F29: €/kg
B30: Emulsion Fuel | C30: 32 | D30: MJ/l | E30: l/100km | F30: €/l
B32: Drop down lists
B33: Contract type | C33: Reference fuel | D33: Fuel price increases
B34: Purchase | C34: Diesel | D34: Choose own values
B35: Lease | C35: Petrol | D35: Use default OECD-FAO values

Sheet Bugs (hidden)
B2: Please list any bugs you find below
